Workbook

Sheet Cover
A1: Algonquin Water Resources of Missouri- dba Resort Utilities
A2: Company Full Certificated Name (Do not abbreviate and include any Commission approved AKA/DBA/Fictitious Name, if applicable.)
A4: Algonquin Water Resources of Missouri- dba Resort Utilities
A6: WATER and/or SEWER ANNUAL REPORT
A8: SMALL COMPANY
A9: (Fewer than 8,000 customers)
A10: TO THE
A12: MISSOURI PUBLIC SERVICE COMMISSION
E14: For the Calendar Year of
A15: January 1 - December 31, | G15: 2011
A18: Please select how the company is certificated with the Commission under the Company Name as shown above (check all that apply):
B19: X | C19: Water Service Provider
B21: X | C21: Sewer Service Provider
A23: Please choose one of the following filing options:
B25: X | C25: Public Submission (NOT Highly Confidential)
C27: Non-Public Submission (Highly Confidential / Filed Under Seal) For this filing to be considered Highly Confidential, additional submission of materials is required pursuant to Commission rule 4 CSR 240-3.335 and/or 4 CSR 240-3.640, Section 392.210, RSMo., and/or Section 393.140, RSMo.
A31: Excel Revised 02/03/2011
G32: (To be used when filing under seal.)
G80: Public
G81: Highly Confidential

Sheet General Instructions
A1: Missouri Public Service Commission 2009 Annual Report Instructions
A3: General Form Information
A4: This report is due to the Missouri Public Service Commission on or before April 15th and is required to be filed on a calendar year basis pursuant to the Commission rules (4 CSR 240-3.335 and/or 4 CSR 240-3.640). Failure to file this report by the deadline of April 15, 2010, could result in penalties up to $100 for every day the report is late pursuant to Section 392.210, RSMo.
A5: • If the document has been prepared by a third-party preparer, it is the responsibility of the company personnel attesting to the accuracy of the document to review the document before submission to the Missouri Public Service Commission.
A6: • After the annual report is complete, save the file to your computer. You may submit it electronically through the Commission's Electronic Filing and Information System (EFIS), as a non-case related submission (see Electronic Filing Instructions on Instructions Pages 4 - 5 for details) or print the form, keep a copy for your records, and prepare for mailing.
A7: • You shall use the form provided by the Commission. You may use one of the three versions provided: 1) the Adobe Fillable document, 2) the Excel version, or 3) the Adobe document that shall be printed and completed by hand.
A8: • The Excel form is "read only". You must save or copy the file to your computer's hard drive to input information into the annual report form.
A9: • If additional space is needed for entering information on a page, please insert a worksheet or page and copy the formats or lines into the new sheet to accommodate the necessary information.
A10: • If you are submitting an annual report extension request, it must be on company letterhead or on the form provided and signed by an officer of the company. A contact email address is also required for approval or rejection of the request.
A11: Questions about the annual report form or its contents may be submitted to: Joan Wandel at (573) 751-4785 or by e-mail at joan.wandel@psc.mo.gov.
A13: Treatment of Highly Confidential Information (Submission Under Seal).
A14: Utilities may request classification of selected portions of their annual report as non-public (highly confidential / filed under seal) pursuant to the Commission rules at 4 CSR 240-3.335 and/or 4 CSR 240-3.640. Please note that all information classified as non-public will still remain subject to potential disclosure as provided under the Missouri open records act (Chapter 610 RSMo) and Section 386.480, RSMo.
A15: In order to include Highly Confidential information in the annual report, the submitter must:
A16: Provide two versions of the annual report; 1) a Public version with the Highly Confidential information redacted (removed), and 2) a fully completed version to be kept as Highly Confidential with restricted access. Below are the procedures outlining the requirements for each type of submission:
A17: (A) Public version
A18: 1. Cover – Check the “Public Submission” box and denote “Public” in the lower right corner. 2. Completion – All pages should be completed excluding the non-public information. 3. Page Designation – Each page that has had Highly Confidential information removed must have the “Public” designation in the lower right corner. 4. Format – where Highly Confidential information has been removed, two (2) asterisks shall be placed before and after the information, e.g. **highly confidential information removed**. The field must be left blank to insure the information remains on the same line and page as in the Highly Confidential version.
A19: (Treatment of Highly Confidential Information [Submission Under Seal] continued on the next page.)
A20: -Instructions Page I-
A21: Treatment of Highly Confidential Information (Submission Under Seal) - continued
A22: (B) Highly Confidential version
A23: 1. Cover – Check the “Non-Public Submission” box and denote “Highly Confidential” in the lower right corner. 2. Completion – All pages should be completed including the Highly Confidential information 3. Page Designation – Each page that contains Highly Confidential information must have a “Highly Confidential” designation in the lower right corner. 4. Format – Highly Confidential information shall be designated by two (2) asterisks before and after the information, e.g. **your highly confidential information here**.
A24: (C) Additional documents required with both submissions:
A25: 1. A cover letter stating the utility is designating some or all of the information in its annual report as confidential and requesting non-public treatment under seal. The name, phone number and e-mail address (if available) of the person responsible for addressing questions regarding the confidential portions of the annual report must be included. 2. A notarized affidavit that clearly identifies the specific types of information to be kept under seal. Justification of why the specific information should be a closed record and a statement attesting that none of the information is available to the public in any format.
A26: Detailed Form Information
A27: Page | B27: Definitions and/or Instructions
A28: Cover | B28: Company Name: This shall reflect the certificated name of the company that the Commission approved in a case; when this field is filled in, it will automatically populate the company name at the top of each of the following sheets. The company name listed on the cover shall include any Commission approved fictitious name or d/b/a name (ABC Company d/b/a XYC LLC). Year: When the reporting period year is entered, it will automatically populate at the top of all subsequent pages.
B29: First check box (certification/registration type): Check the box if the company listed on the Company Name line has been approved as competitively classified by the Commission. Second set of check boxes (security level/filing options): Check the first box (Public Submission) if this is the public version of the annual report. Check the bottom box (Non-Public Submission) only if the annual report contains proprietary or highly confidential information in the report. The annual report submission will be considered deficient unless this submission is accompanied by the required documentation. Please see Treatment of Highly Confidential Information in the above section for details.
A30: Verification Page | C30: The verification page must be completed in full, including notary seals, if or where applicable. This page must accompany all versions of this report including any original or revised, highly confidential, proprietary and public versions.
C31: The State Of and County Of fields shall be filled with the location where the notary operates and where this document was notarized. Legal Name of Affiant: Any representative of the company authorized to attest to the accuracy of the annual report. Official Title of the Affiant: Title of the representative named on the line just above this one.
A32: (Verification Page instructions continued on the next page. )
A33: -Instructions Page II-
A34: Detailed Form Information (continued)
A35: Page | B35: Definitions and/or Instructions
A36: Verification Page (continued)
C37: Exact Legal Title or Name of the Respondent: Company Name as certificated/registered with the Commission, as listed on the cover and the top of the verification sheet. Signature of Affiant: Signature of authorized company representative named above on the verification page. The remaining fields are for completion by the notary including the date, month and year of the notarization, the notary's commission expiration date, notary signature, and placement of the notary stamps or seals, where applicable.
C38: When submitting the annual report form electronically, complete the verification page in full. Electronic signatures are acceptable pursuant to Sections 432.200 through 432.295 RSMo. The original document shall be notarized and kept for your records. On the electronic version, type the electronic signatures ( /s/ John Doe) and dates that are reflected on the original document.
A39: Options for Submitting the Annual Report to the Missouri Public Service Commission
A40: The annual report may be submitted to the Missouri Public Service Commission by either of the following methods:
A41: 1. Electronically through the Electronic Filing and Information System (EFIS). This system accepts submissions 24 hours a day and saves on postage/shipping expenses. Please see Instructions Page 4 - 5 for detailed instructions to use this system. If you have questions while using EFIS, staff is available Monday - Friday from 8:00 a.m. - 5:00 p.m. (excluding State holidays) to assist you at (573) 751-7496. NOTE: E-mails and faxes are NOT acceptable methods of filing the annual report electronically.
A42: or
A43: 2. Mail to the following address: Missouri Public Service Commission Attention: Data Center For package delivery: 200 Madison Street, Suite 100 Jefferson City, MO 65101 For U.S. Mail: P.O. Box 360 Jefferson City, MO 65102-0360
A44: -Instructions Page III-
A45: Electronic Filing of Annual Report Information
A47: If you submit your information electronically, please do not send in a paper copy.
A48: In order to file in the Electronic Filing and Information System (EFIS):
A49: • You must have a user ID and password, • The company you are filing on behalf of must be registered in EFIS. (All certificated companies are already registered in EFIS. Please do not create a company registration), • The person making the filing must be registered as a contact for the company/firm they are making the filing on behalf of, and • You need to have the information you want to submit saved electronically.
A50: If you are unsure if you have a user ID, if your company is registered, or if you are registered as a contact for the company, please contact the Data Center at datacenter-psc@psc.mo.gov or (573) 751-7496 before completing new registration information.
A51: To access EFIS, go to the PSC website at http://www.psc.mo.gov. Click the ‘EFIS / Case Filings’ link from the menu on the left-hand side. Scroll down to the ‘Main Menu Section of EFIS’ and click on the ‘EFIS’ link. This will take you to the EFIS Welcome Screen.
A52: • Click the orange ‘Logon’ button on the left-hand side. • Enter your User ID and Password. NOTE: Passwords are case sensitive.
A53: Submission of Annual Report
A54: • Click on the ‘Filing/Submission’ menu option. • Click on the ‘Non-Case Related Submission’ link.
A55: Complete the Non-Case Related Submission screen with the following information:
A56: • Type of Utility – Select the utility type as which the company is certificated/registered. Separate submissions are required if a company has multiple certifications/registrations (Example: Water and Sewer; or CLEC and IXC). • Company – Select certificated company name. Choose d/b/a name, if applicable. This name should match the name at the top of the annual report's cover page. • Type of Submission – Select ‘Annual Report (Mo PSC)’. • Total Missouri Jurisdictional Revenue – Enter the amount from the annual report form found on Page 1, Item No. 16 (Water) or Item No. 19 (Sewer). • Report for Calendar Year - Type in 2009. • Applicable Case No. – Leave blank. • Date Filed – Will already be filled in. • Click on the ‘Continue’ button. This will take you to the Filing/Submission Attachment screen. • Click on ‘Browse’ – Select the file that contains the completed annual report. • Choose the security level for your document: Public, Highly Confidential, or Proprietary. • Click the ‘Attach’ button. On screen instructions are provided for attaching more than one document. Confirm that the correct document is attached before proceeding. • Click the ‘Done with Attach’ button. This will return you to the original submission screen. • Scroll down and click on the ‘Submit’ button.
A57: This will complete your submission and assign a non-case related tracking number (BMAR-2009-xxxx). Please retain this number for your records.
A58: -Instructions Page IV-
A59: Electronic Filing of Annual Report Information (continued)
A60: Submission of Additional Information
A61: If you are asked to provide additional information or need to file amended information, file it as a ‘Non-Case Related Supplemental Submission’ using the tracking number from your original annual report submission.
A62: Instructions for this type of submission can be found by clicking on the blue ‘Help’ button on the left-hand side of any EFIS screen. Scroll down to ‘Filing / Submission – Non-case Related’. Then choose 'Make a subsequent filing to a non-case related submission'.
A63: Request for Extension (30 days or Less)
A64: If you will not be able to file your annual report by the April 15th deadline, you must request an extension on or before April 15th.
A65: All annual report extension requests must be on company letterhead and signed by an officer of the company or on the form provided on the PSC website (www.psc.mo.gov/forms) and signed electronically by a company representative. A contact e-mail address is required for approval or rejection of the request
A66: Follow the instructions for filing an annual report with these modifications.
A67: • Type of Submission - Select Annual Report (MO PSC) Extension Request. • Comments - Type in 2008 Annual Report Extension Request. • Under “Browse”, attach your documentation for requesting an extension.
A68: Once your submission is complete, you will be assigned a non-case related tracking number (BARE-2010-xxxx). Please retain this number for your records.
A69: Additional instructions can be found under the blue ‘Help’ button in EFIS on how to:
A70: • Access EFIS. • Log on to EFIS. • Obtain a user ID and password. • Reset my password. • File an annual report, statement of revenue, or other non-case related submission. • Make a subsequent filing to a non-case related submission.
A74: -Instructions Page V-

Sheet Detailed Instructions
A1: DETAILED FORM INSTRUCTIONS
A2: This form should be used by companies that have fewer than 8,000 customers.
A3: In examining the report form you will note there are various references requiring water information and sewer information on the same page.
A5: If you have water operations only, you should complete all information for water utilities. Any requested information for sewer data should be clearly marked by you as Not Applicable (e.g., N.A.).
A7: If you have sewer operations only, you should complete all information requested for sewer utilities. Any requested information for water data should be clearly marked by you as Not Applicable (e.g., N.A.).
A9: If you are a joint utility in that you have both water and sewer operations, you shall fill out all parts of all pages completely to the best of your ability and belief utilizing the available information. You will note that all pages on Lines 1 and 2 require the year of the report and the company name. This must be completed on all pages.
A11: If this document has been prepared by a third-party preparer, it is the responsibility of the company personnel attesting to the accuracy of document to review the document before submission to the Missouri Public Service Commission.
A13: INSTRUCTIONS for PAGE 1
A14: On Line 2, provide the full company name as it appears on your certificate of convenience and necessity.
A15: On Lines 3, provide the company street address. On Line 4, provide the mailing address if different than Line 3.
A16: On Line 5, provide the company phone number and the e-mail address of the regulatory contact. If an e-mail address is not available please designate with "n/a".
A17: On Lines 6 through 15, provide names, addresses, phone numbers and e-mail addresses of any persons who can be contacted concerning information contained in this report.
A18: On Lines 13 through 17, provide names, addresses, phone numbers and e-mail addresses of any persons who can be contacted concerning plant operations.
A19: On Lines 16 through 21, please enter the Company Revenues indicated. If using the Excel version, the Missouri Jurisdictional Revenues will automatically fill from pages W-2 and S-2.
A21: INSTRUCTIONS for PAGE 2
A22: On Line 2, provide the full company name as it appears on your certificate of convenience and necessity.
A23: On Lines 3 through 7, provide for each class and/or series of common and/or preferred stock the total number of shares authorized by charter, the par or stated value per share and the total number of shares issued.
A24: On Lines 8 through 15, provide the names, addresses and number of votes resulting from stock ownership as of December 31. If any such holder held the stock in trust, state the nature of the trust and the beneficial owner.
A25: On Line 16, provide total number of votes held by the names provided in lines 8 through 15.
A26: On Line 17, provide the total number of votes of all securities with voting rights.
A27: On Lines 18 - 23, provide the title and names of the officers of the company at the end of the reporting year.
A28: On Line 21 and 22, check all boxes for which the company is current.
A29: On Line 23, provide the case number and effective date of the last approved rate request case with the Commission.
A30: On Lines 27 and 28, check all boxes for which the company has filed and is current on the appropriate paperwork and payments.
A31: On Line 29, provide the most recent rate increase request case number and effective date of approval.
A32: -Instructions Page VI-
A33: INSTRUCTIONS for PAGE 3
A34: On Line 2, provide the full company name as it appears on your certificate of convenience and necessity.
A35: Describe all transactions occurring during the year that will have a major effect on operations.
A36: These transactions may be rate changes, the replacement of major equipment or any other abnormal cash expenditure amounting to $250 or more. Please note that if the expenditure is of a normal and recurring nature (i.e., monthly electric bills), it should not be classified as an abnormal item.
A38: INSTRUCTIONS for PAGE 4
A39: The dollar amount for Lines 3, 4, 6, 10, 11 and 13 should be brought forward from the appropriate page and line as indicated.
A40: Construction Work in Progress: Shall include the total amount of work for utility plant in process of construction but not ready for service at the end of the year.
A41: Plant Held for Future Use: Shall include the original cost of property owned and held for future use under a definite plan for use.
A42: Plant Acquisition Adjustment: Shall include the purchase price of any plant purchased less the original cost, estimated if not known, less any depreciation reserve.
A44: INSTRUCTIONS for PAGE 5
A45: The dollar amount for Lines 11, 12, 16 and 17 should be brought forward from the appropriate page and line as indicated.
A46: Customer Deposits: Shall include all deposits with the utility by customers as security for payment of bills.
A47: Advances for Construction: Shall include advances by any applicant for construction that is to be refunded either in part or completely.
A48: Contributions in Aid of Construction (CIAC): Shall include any donation or contribution in cash or services, or property from any company, individual, agency or others for construction purposes. CIAC shall include connection fees for new service. All supporting entries shall be kept so that the utility can furnish information regarding the purpose of each donation, and the amount of the donation. (NOTE: There shall not be any advances for construction that are to be repaid in part or completely included in this account except if not returned by the time specified in the utilities tariff.)
A50: NOTE: TOTAL ASSETS FROM PAGE 4 MUST BALANCE WITH TOTAL EQUITY AND LIABILITIES FROM PAGE 5
A53: INSTRUCTIONS for PAGE 6
A54: On Page 6, provide information for all customer sales determined to be uncollectible. You should identify the customer, the methods used to attempt collection, the amount and why it is uncollectible (i.e., customer filed bankruptcy, left town, etc.). This uncollectible amount is an expense to be recorded on the Income Statement (Page W-1 and/ or S-1).
A56: INSTRUCTIONS for PAGE 7
A57: On Page 7, provide information regarding payroll. Provide names, titles and salaries of all officers and employees. Provide total compensation paid to each during the year including bonuses and other allowances. Identify the total compensation as chargeable to water expense, sewer expense or construction. Also, identify any employee who did not receive any compensation during the year.
A59: INSTRUCTIONS for PAGE 8
A60: On Page 8, provide information regarding professional services the utility company received. Report all information concerning rate, management, construction, engineering, research, financial, valuation, legal, accounting, purchasing, advertising, labor relations, public relations, or other similar professional services rendered the respondent under written or verbal arrangements, for which total payments during the year to any corporation, partnership, individual (other than for services as an employee), or organization of any kind whatsoever.
A61: -Instructions Page VII-
A63: INSTRUCTIONS for PAGE 9
A64: On Page 9, provide information regarding contributions in aid of construction and the amortization of contributions in aid of construction. This account shall include donations or contributions in cash, services, or property for construction purposes, including connection fees for new service. The records supporting the entries to this account shall be so kept that the utility can furnish information as to the purpose of each donation, the conditions, if any, upon which it was made, the amount of each donation, and the amount applicable to each utility department. The credits (deductions) to this account shall not be transferred to any other account without the approval of the Commission.
A65: Lines 3 and 4 require input from last year's annual report page 9.
A66: Line 4 is the recording of new contributions for this year.
A67: Line 11 depends on the method your company uses for CIAC amortization. If your company uses the "distributed" method as described below, no retirement entries for CIAC should appear in line 11, (leave them blank).
A68: For retirement purposes, Contributions in Aid of Construction (CIAC) are amortized at the same rate as the depreciation rates set for the plant equipment. There are two methods as follows:
A69: 1. Attached Method: This method is the keeping of continuous property records such that the contributions are kept “attached” to the original equipment contributed. CIAC is amortized and retired at the same depreciation rate and retirement dates as the equipment which it is “attached” to. For this method complete the table with Line 18 through Line 24.
A70: 2. Distributed Method: Most small companies use this method. This method results in no CIAC retirement entries on line 11. The “distributed” method is to treat each contribution as a dollar amount that is equally distributed to all plant in service. Under this method, the annual CIAC amortization is a portion of the total plant depreciation expense. The ratio used to calculate this portion is the end of year CIAC balance divided by the end of year total plant in service. The CIAC amortization is simply the total plant depreciation expense multiplied by the ratio of CIAC to Total Plant. The annual amortization is added to the sum of all prior accumulated amortization until the total equals the original amount of all contributions. At this point the process is stopped and both the total CIAC and the accumulated amortization are reset to zero. For this method, complete the table containing Line 25 through Line 27.
A72: INSTRUCTIONS for PAGE 10
A73: On Page 10, provide all required information concerning interest expense, notes payable, bonds, bank loans and other financial debts that existed during the year. For each debt on which interest was paid during the year provide the name and address of the lender, the date of maturity, the loan balance, the interest rate on the loan, and the amount of interest paid. The amount of interest paid should be assigned to water utility expense and/or sewer utility expense based upon which utility was responsible for the loan.
A75: INSTRUCTIONS for PAGE 11
A76: On Page 11, provide descriptions, quantities and dollar costs of materials and supplies in inventory. These items may be pipe, wire, gasoline, diesel, etc. You should identify the cost and assign the cost to either water or sewer.
A78: INSTRUCTIONS for PAGES W-1, W-2, W-3 and/or S-1, S-2, S-3
A79: On Pages W-1, W-2, W-3 and/or S-1, S-2, S-3, provide information regarding all billed revenues, expenses, customer numbers and gallon sales.
A81: INSTRUCTIONS for PAGE W-4
A82: On Page W-4, provide information regarding quantities of water from each source of supply that entered the system. On Line 21, provide data regarding the maximum and minimum quantities of water supplied in any one day. On Line 22, provide the range of pressures that exist at the highest point of the system. On Lines 23 thru 26, provide information regarding any sale of water for resale.
A83: -Instructions Page VIII-
A84: INSTRUCTIONS for PAGES W-5, W-6 and/or S-4, S-5
A85: On Pages W-5, W-6 and/or S-4, S-5, provide information regarding water and/or sewer utility plant-in-service, depreciation expense and depreciation reserve. The account numbers shown in column (b) are defined in the Uniform System Of Accounts (USOA). The definitions describe what type of plant equipment is included in each account number. For each company, a USOA CLASS, a set of account numbers, and a set of depreciation rates are assigned by the PSC. These assignments for use by your company should be specified in a Depreciation Rate Schedule included as part of your company's last certificate or rate case final order. If you do not have this schedule, call the PSC and ask to speak to someone in the Engineering and Management Services Department
A86: Columns (c), (d), (e) and (f) require original installed cost of plant and equipment placed in service. If a replacement of plant occurs, such as a pump change-out or trading in a truck, then column (d) should show the full installed cost of the new item. In retirement column (e), record the original installed cost (from Plant Property Records), of the item which was replaced (removed). These entries should be supported by books and records, which identify the property and its location. The Balance at End of Year, column (f) equals columns (c) plus (d) minus (e).
A87: Depreciation expense column (h) is computed using the Balance at End of Year column (f), --- or mid-year or mid-month convention used by your company. Record in column (g) the depreciation rate used, (from you company's PSC Depreciation Rate Schedule). Column (i) is the carry forward of depreciation reserve from last years annual report. Book Cost of Plant Retired column (j) should be the same as Retirements During the Year column (e). Column (k) should reflect cost incurred to remove the plant which was retired. Column (l) should reflect any money received from the sale or trade-in of the equipment removed or replaced. Reserve balance at End of Year column (n) equals (h) plus (i) minus (j) minus (k) plus (l) plus (m).
A88: ***SAVE A COPY FOR NEXT YEARS BEGINNING BALANCES****
A90: INSTRUCTIONS for PAGE W-7
A91: On Page W-7, provide historical and statistical information regarding water pumps and wells.
A93: INSTRUCTIONS for PAGE W-8
A94: On Page W-8, provide historical and statistical information regarding water meters, meter settings and storage facilities.
A96: INSTRUCTIONS for PAGE W-9
A97: On Page W-9, provide historical information regarding the feet of water mains and number of service lines by size and type.
A99: INSTRUCTIONS for PAGE S-6
A100: On Page S-6, provide historical and statistical information regarding sewer treatment facilities, lift stations and feet of collecting sewers by size and type.
A101: -Instructions Page IX-

Sheet Pg1 Gen Info
A1: 1 | B1: For the calendar year of January 1 - December 31, | O1: =IF(Cover!G15>0,Cover!G15," ") -> 2011
B2: Company Name: | E2: =IF(Cover!$B$1>0,Cover!$B$1," ") -> 
A3: 2 | E3: =IF(Cover!A1>0, Cover!A1, " ") -> Algonquin Water Resources of Missouri- dba Resort Utilities
B5: Parent Company Name:
B6: (if applicable)
A7: 3 | B7: Company Street Address: | E7: 12725 W. Indian School Rd., Suite D101 Avondale, AZ
B8: Company Mailing Address:
A9: 4 | E9: 12725 W. Indian School Rd., Suite D101 Avondale, AZ
B10: Company Phone Number: | E10: 623-935-9367 | J10: Company E-mail Address:
A11: 5
B12: Name, address, phone number and e-mail of person(s) to contact concerning information contained in this report:
A14: 6 | B14: Shawn Bundy
B15: Name | I15: Name
A16: =SUM(A14+1) -> 7 | B16: 12725 W. Indian School Rd., Suite D101 Avondale, AZ
B17: Mailing Address | I17: Mailing Address
A18: 7a | B18: 12725 W. Indian School Rd., Suite D101 Avondale, AZ.
B19: Street Address | I19: Street Address
A20: 8
B21: City | E21: State | F21: Zip | I21: City | N21: State | O21: Zip
A22: 9 | B22: 623-298-3744
B23: Telephone Number | I23: Telephone Number
A24: 10 | B24: Shawn.Bundy@libertywater.com
B25: E-mail Address | I25: E-mail Address
B27: Name, address, phone number and e-mail address of person(s) to contact concerning plant operations:
A28: 11
B29: Name | I29: Name
A30: 12
B31: Mailing Address | I31: Mailing Address
A32: 12a
B33: Street Address | I33: Street Address
A34: 13
B35: City | E35: State | F35: Zip | I35: City | N35: State | O35: Zip
A36: 14
B37: Telephone Number | I37: Telephone Number
A38: 15
B39: E-mail Address | I39: E-mail Address
B40: Please provide the total company and gross intrastate operating revenues (i.e. Missouri Jurisdictional) Revenues
B41: for the Calendar Year: | D41: =IF(Cover!G15>0, Cover!G15," ") -> 2011
B42: Water Revenues | I42: ** | J42: MO Jurisdictional | L42: ** | M42: ** | N42: Total Company | P42: **
A43: 16 | B43: Operating Revenues from Tariffed Services | J43: 540804.82 | N43: =+J43 -> 540804.82
A44: 17 | B44: Other Revenues | J44: 47.99 | N44: =+J44 -> 47.99
A45: 18 | B45: TOTAL REVENUES | J45: =SUM('PgW-2_Op Rev&Exp'!L59:M60) -> 541074.82 | N45: =SUM(N43:O44) -> 540852.81
B46: MO Jurisdictional should match Statement of Revenue (MoPSC Assessment).
B48: Sewer Revenues | I48: ** | J48: MO Jurisdictional | L48: ** | M48: ** | N48: Total Company | P48: **
A49: 19 | B49: Operating Revenues from Tariffed Services | J49: 223665.92 | N49: =+J49 -> 223665.92
A50: 20 | B50: Other Revenues | J50: =SUM('PgS-2_Op Rev&Exp'!L51:M52) -> 0 | N50: =+J50 -> 0
A51: 21 | B51: TOTAL REVENUES | J51: 223665.92 | N51: =SUM(N49:O50) -> 223665.92
B52: MO Jurisdictional should match Statement of Revenue (MoPSC Assessment).
N54: (To be used when filing under seal.)
K55: Indicates link to another worksheet within workbook
G81: Public
G82: Highly Confidential

Sheet Pg2 Stock, Sec Hldrs&Voting Pwr
A1: 1 | B1: For the calendar year of January 1 - December 31, | M1: =IF(Cover!G15>0,Cover!G15," ") -> 2011
A3: 2 | B3: Company Name: | E3: =IF(Cover!$A$1>0,Cover!$A$1," ") -> Algonquin Water Resources of Missouri- dba Resort Utilities
B5: CAPITAL STOCK (COMMON AND DEFERRED)
B6: Class and Series of Stock
G7: Number of | J7: Par or | L7: Number of
G8: Shares | J8: Stated Value | L8: Shares
G9: Authorized | J9: Per Share | L9: Issued
B10: (a) | G10: (b) | J10: (c) | L10: (d)
A11: 3
A12: 4
A13: 5
A14: 6
A15: 7
B17: SECURITY HOLDERS AND VOTING POWERS
B18: Report below the NAMES and ADDRESS of the ten stockholders who, at the end of the year, had the greatest voting powers in the respondent.
B19: AND STATE THE NUMBER OF VOTES each would have had a right to cast on that date. If any such holder held in trust, give the nature of the
B20: trust and the beneficial owner. Show also total votes of ALL securities with voting powers.
B21: Names and Addresses | L21: Number of Votes
B23: (a) | L23: (b)
A24: 8 | B24: Liberty Water Co.
A25: 9
A26: 10
A27: 11
A28: 12
A29: 13
A30: 14
A31: 15
B32: Total Number of Votes Held by Above
A33: 16
B34: Total Number of Votes of all Securities with Voting Powers
A35: 17
B37: Identify the principal or general officers of the company at the end of the year. Please include an additional sheet, if enough space is not provided on this page, to completely provide the requested information.
C38: Title of General Officer | I38: Name of Person Holding Office
A39: 18 | C39: Director | I39: Ian Robertson
A40: 19 | C40: Director | I40: Greg Sorensen
A41: 20 | C41: CFO | I41: David Bronicheski
A42: 21 | C42: Vice President | I42: Christopher Jarratt
A43: 22
A44: 23
B46: Please check all of the following for which the company has filed / is current:
A48: 27 | D48: Secretary of State Requirements | H48: X | I48: Federal Tax Return
A50: 28 | D50: Department of Natural Resources Permits | H50: X | I50: State Tax Return
B52: Please list your most recent rate increase request Case No. and effective date.
A53: 29 | B53: Case No.: | C53: YW-2007-0650 | G53: Effective Date: | H53: 2007-04-02
K56: (To be used when filing under seal.)
G81: Public
G82: Highly Confidential

Sheet Pg3 Chgs During Year
A1: 1 | B1: For the calendar year of January 1 - December 31, | K1: =IF(Cover!G15>0,Cover!G15," ") -> 2011
B2: Company Name: | D2: =IF(Cover!$A$1>0,Cover!$A$1," ") -> Algonquin Water Resources of Missouri- dba Resort Utilities
A3: 2
B4: Describe MAJOR transactions occurring during the year which will have a major effect on operations, such as rate changes,
B6: replacement of equipment and other abnormal cash expenditures of $250 or more.
A9: 3
A11: 4
A13: 5
A15: 6
A17: 7
A19: 8
A21: 9
A23: 10
A25: 11
A27: 12
A29: 13
A31: 14
A33: 15
A35: 16
A37: 17
A39: 18
A41: 19
A43: 20
A45: 21
A47: 22
A49: 23
A51: 24
A53: 25
A55: 27
A57: 28
A59: 29
A61: 30

Sheet Pg4_BS-Assets
A1: 1 | B1: For the calendar year of January 1 - December 31, | J1: =IF(Cover!G15>0,Cover!G15," ") -> 2011
A3: 2 | B3: Company Name: | D3: =IF(Cover!$A$1>0,Cover!$A$1," ") -> Algonquin Water Resources of Missouri- dba Resort Utilities
B6: NOTE: Please do not type over formulas. Totals will calculate automatically in this spreadsheet.
B9: BALANCE SHEET
B10: WATER AND SEWER OPERATIONS
B11: ASSETS
B14: Account Description | I14: Amount
B15: (a) | I15: (b)
H16: ** | K16: **
I17: ='PgW-5_Wtr Plant'!$M$64 -> 7101502.13
A18: 3 | B18: Water Plant In Service (From Pg. W-5)
I19: ='PgW-6_Depr Res-Wtr Plant'!$K$65 -> 2884783.14
A20: 4 | B20: LESS: | C20: Water Depreciation Reserve (From Pg. W-6)
I21: =I17-I19 -> 4216718.99
A22: 5 | B22: Net Water Plant in Service (i.e., Water Plant In Service MINUS Water Depreciation Reserve)
I23: ='Pg11_M&S'!$G$58 -> 0
A24: 6 | B24: Water Materials and Supplies (From Pg. 11)
I25: -9047
A26: 7 | B26: Water Construction Work in Progress
A28: 8 | B28: Water Plant Held for Future Use *
I29: -3218660.89
A30: 9 | B30: Water Plant Acquisition Adjustment
I31: ='PgS-4_Swr Plant'!M53 -> 2113580
A32: 10 | B32: Sewer Plant in Service (From Pg. S-4)
I33: =SUM('PgS-5_Depr Res-Swr Plant'!K54:L54) -> 1081197.66
A34: 11 | B34: LESS: | C34: Sewer Depreciation Reserve (From Pg. S-5)
I35: =I31-I33 -> 1032382.34
A36: 12 | B36: Net Sewer Plant in Service (i.e., Sewer Plant in Service MINUS Sewer Depreciation Reserve)
I37: ='Pg11_M&S'!$J$58 -> 0
A38: 13 | B38: Sewer Materials and Supplies (From Pg. 11)
I39: 26014
A40: 14 | B40: Sewer Construction Work in Progress
A42: 15 | B42: Sewer Plant Held for Future Use *
I43: =-446657-166790 -> -613447
A44: 16 | B44: Sewer Plant Acquisition Adjustment
A46: 17 | B46: Other Plant *
I47: 108089.07
A48: 18 | B48: Cash
I49: 168754.25
A50: 19 | B50: Other Assets (Accounts Receivable, etc.) *
I51: =I21+I23+I25+I27+I29+I35+I37+I39+I41+I43+I45+I47+I49 -> 1710803.76
A52: 20 | B52: Total Assets**
B55: * Please attach a detailed explanation for these items.
B57: ** Total Assets should balance with Total Equity and Liabilities on Page 5 (see instructions).
B58: Difference between Equity & Liabilities and Assets (from Pg 5) | I58: =SUM(I51)-SUM('Pg5_BS-Eq & Liab'!J53:K54) -> -2004204.29
G60: Indicates link to another worksheet within workbook
G62: Indicate formula cells
G64: (To be used when filing under seal.)
G81: Public
G82: Highly Confidential

Sheet Pg5_BS-Eq & Liab
A1: 1 | B1: For the calendar year of January 1 - December 31, | K1: =IF(Cover!G15>0,Cover!G15," ") -> 2011
A3: 2 | B3: Company Name: | D3: =IF(Cover!$A$1>0,Cover!$A$1," ") -> Algonquin Water Resources of Missouri- dba Resort Utilities
B5: NOTE: Please do not type over formulas. Totals will calculate automatically in this spreadsheet.
B7: BALANCE SHEET
B8: WATER AND SEWER OPERATIONS
B9: EQUITY AND LIABILITIES
B12: Account Description | J12: Amount
B13: (a) | J13: (b)
I14: ** | L14: **
B15: Capital Stock | J15: 3434329
A16: 3
B17: Retained Earnings | J17: -219994.58
A18: 4
B19: Long-Term Debt to Affiliates (owners, other owner controlled companies, etc.)
A20: 5
B21: Short-Term Debt to Affiliates (owners, other owner controlled companies, etc.) | J21: 310686.49
A22: 6
B23: Long-Term Debt (banks, etc.)
A24: 7
B25: Short-Term Debt (banks, etc.)
A26: 8
B27: Water Customer Deposits | J27: 9500
A28: 9
B29: Water Advances for Construction
A30: 10
B31: Water CIAC (From Pg. 9) | J31: =Pg9_CIAC!$H$39 -> 0
A32: 11
C33: Water Amortization of CIAC (From Pg. 9) | J33: =Pg9_CIAC!$H$53 -> 0
A34: 12 | B34: LESS:
B35: Net Water CIAC (i.e., Water CIAC MINUS Water Amortization of CIAC) | J35: =J31-J33 -> 0
A36: 13
B37: Sewer Customer Deposits
A38: 14
B39: Sewer Advances for Construction
A40: 15
B41: Sewer CIAC (From Pg. 9) | J41: =Pg9_CIAC!$J$39 -> 0
A42: 16
C43: Sewer Amortization of CIAC (From Pg. 9) | J43: =Pg9_CIAC!$J$53 -> 0
A44: 17 | B44: LESS:
B45: Net Sewer CIAC (i.e., Sewer CIAC MINUS Sewer Amortization of CIAC) | J45: =J41-J43 -> 0
A46: 18
B47: Deferred Taxes - ITC
A48: 19
B49: Deferred Taxes - Other *
A50: 20
B51: Other Liabilities (Accounts Payable, etc.) * | J51: 180487.14
A52: 21
B53: Total Equity and Liabilities** | J53: =J15+J17+J19+J21+J23+J25+J27+J29+J35+J37+J39+J45+J47+J49+J51 -> 3715008.05
A54: 22
B57: * Please attach a detailed explanation for these items.
B59: ** Total Equity and Liabilities should balance with Total Assets on Page 4 (see instructions).
B60: Difference between Equity & Liabilities and Assets (from Pg 4) | J60: =SUM(J53)-SUM('Pg4_BS-Assets'!I51:J52) -> 2004204.29
G62: Indicates link to another worksheet within workbook
G64: Indicate formula cells
H66: (To be used when filing under seal.)
H80: Public
H81: Highly Confidential

Sheet Pg6_Sch of Uncollectibles
A1: 1 | B1: For the calendar year of January 1 - December 31, | L1: =IF(Cover!G15>0,Cover!G15," ") -> 2011
A3: 2 | B3: Company Name: | D3: =IF(Cover!$A$1>0,Cover!$A$1," ") -> Algonquin Water Resources of Missouri- dba Resort Utilities
B5: SCHEDULE OF UNCOLLECTIBLE ACCOUNTS
I7: Amount Written Off
C8: Describe customer account and methods used to attempt
B9: Account | C9: collection. Also, state why account is deemed uncollectible | I9: Water | K9: Sewer
B10: No. | C10: (bankruptcy, etc.) | I10: Utility | K10: Utility
B11: (a) | C11: (b) | H11: ** | I11: (c) | K11: (d) | M11: **
A13: 3
A15: 4
A17: 5
A19: 6
A21: 7
A23: 8
A25: 9
A27: 10
A29: 11
A31: 12
A33: 13
A35: 14
A37: 15
A39: 16
A41: 17
A43: 18
A45: 19
A47: 20
A49: 21
A51: 22
A53: 23
A55: 24
A57: 25
A59: 26
A61: 27
A63: 28
A65: 29
A67: 30
C68: Total | I68: =SUM(I12:J67) -> 0 | K68: =SUM(K12:L67) -> 0
A69: 31
I70: (Total to Pg. W-1) | K70: (Total to Pg. S-1)
D73: Indicate formula cells
I74: (To be used when filing under seal.)
I89: Public
I90: Highly Confidential

Sheet Pg7_Payroll Info
C1: PAYROLL INFORMATION | P1: 2 | R1: 1
P2: Company Name: | R2: For the calendar year of January 1 - December 31,
C3: INSTRUCTIONS: Please provide names, titles and salaries for all officers and employees. Show total compensation paid to each during the year. Include all amounts including
C4: bonuses and other allowances. Enter "0" or none where applicable. Provide explanations where necessary. Use additional sheets if necessary.
G7: Payroll Charged To:
G10: Total Utility | I10: Water | K10: Sewer | M10: Capitalized | P10: =IF(Cover!$A$1>0,Cover!$A$1," ") -> Algonquin Water Resources of Missouri- dba Resort Utilities
C11: Name and Title | G11: Compensation | I11: Expense | K11: Expense | M11: Payroll
C12: (a) | G12: (b) | I12: (c) | K12: (d) | M12: (e)
B15: 3
B17: 4
B19: 5
B21: 6
B23: 7
B25: 8
B27: 9
B29: 10
B31: 11
B33: 12
B35: 13
B37: 14
B39: 15
B41: 16
B43: 17
B45: 18
C46: Total | G46: =SUM(G14:H45) -> 0 | I46: =SUM(I14:J45) -> 0 | K46: =SUM(K14:L45) -> 0 | M46: =SUM(M14:N45) -> 0
B47: 19
A48: Page 7 | I48: (Total to Page W-1) | K48: (Total to Page S-1) | R48: =IF(Cover!G15>0,Cover!G15," ") -> 2011
M51: Indicate formula cells

Sheet Pg8_Contract Svcs
C1: PAYMENTS FOR SERVICES RENDERED BY OTHER THAN EMPLOYEES | P1: 2 | R1: 1
P2: Company Name: | R2: For the calendar year of January 1 - December 31,
C3: INSTRUCTIONS: Report below all information concerning rate, management, construction, engineering, research, financial, valuation, legal, accounting, purchasing, advertising, labor
C4: relations, public relations, or other similar professional services rendered the respondent under written or verbal arrangements, for which total payments during the year to any
C5: corporation, partnership, individual (other than for services as an employee) or organization of any kind whatsoever. Use additional sheets if necessary.
G8: Amount of Payments:
P10: =IF(Cover!$A$1>0,Cover!$A$1," ") -> Algonquin Water Resources of Missouri- dba Resort Utilities
G11: Water | K11: Sewer
C14: Name of Recipient and Description of Service | G14: Expensed | I14: Capitalized | K14: Expensed | M14: Capitalized
C15: (a) | G15: (b) | I15: (c) | K15: (d) | M15: (e)
B18: 3
B20: 4
B22: 5
B24: 6
B26: 7
B28: 8
B30: 9
B32: 10
B34: 11
B36: 12
B38: 13
B40: 14
B42: 15
B44: 16
B46: 17
B48: 18
C49: Total | G49: =SUM(G17:H48) -> 0 | I49: =SUM(I17:J48) -> 0 | K49: =SUM(K17:L48) -> 0 | M49: =SUM(M17:N48) -> 0
A50: Page 8 | B50: 19
G51: (Total to Page W-1) | K51: (Total to Page S-1) | R51: =IF(Cover!G15>0,Cover!G15," ") -> 2011
M54: Indicate formula cells

Sheet Pg9_CIAC
A1: 1 | B1: For the calendar year of January 1 - December 31, | K1: =IF(Cover!G15>0,Cover!G15," ") -> 2011
A3: 2 | B3: Company Name: | D3: =IF(Cover!$A$1>0,Cover!$A$1," ") -> Algonquin Water Resources of Missouri- dba Resort Utilities
B5: CONTRIBUTIONS IN AID OF CONSTRUCTION
B7: INSTRUCTIONS: This account shall include donations or contributions in cash, services, or property for construction purposes. The records supporting the entries to this
B8: account shall be so kept that the utility can furnish information as to the purpose of each donation, the conditions, if any, upon which it was made, the amount of each donation,
B9: and the amount applicable to each utility department. The credits (deductions) to this account shall not be transferred to any other account without the approval of the
B10: Commission.
B12: (a) | H12: Water (b) | J12: Sewer (c)
B13: Balance at Beginning of Year
A14: 3
C15: Additions During the Year (Please provide a detailed explanation.)
A16: 4 | B16: PLUS:
A18: 5
A20: 6
A22: 7
A24: 8
B25: Total Additions | H25: =SUM(H15:I24) -> 0 | J25: =SUM(J15:K24) -> 0
A26: 10
B27: LESS: | C27: Deductions During the Year (Please provide a detailed explanation.)
A28: 11
A30: 12
A32: 13
B33: Retire and cap off service connection, but no connection fee money returned = no entry here
A34: 14
A36: 15
B37: Total Deductions | H37: =SUM(H27:I36) -> 0 | J37: =SUM(J27:K36) -> 0
A38: 16
B39: Balance at End of Year | H39: =H13+H25-H37 -> 0 | J39: =J13+J25-J37 -> 0
A40: 17
H41: (Total to Pg. 5) | J41: (Total to Pg. 5)
B44: AMORTIZATION OF CONTRIBUTIONS IN AID OF CONSTRUCTION
B45: (Please identify as Account Number 271A)
B46: (a) | H46: Water (b) | J46: Sewer (c)
A47: 18 | B47: Balance at First of Year (Total of Amortization not Total of CIAC line 3)
A48: 19 | B48: Total Contributions in Aid at End of Year (see above) | H48: =SUM(H39) -> 0 | J48: =SUM(J39) -> 0
A49: 20 | B49: Total Plant in Service at End of Year (From Page W-5 or S-4) | H49: ='PgW-5_Wtr Plant'!$M$64 -> 7101502.13 | J49: =SUM('PgS-4_Swr Plant'!M53:N53) -> 2113580
A50: 21 | B50: Percentage Contributions to Plant | H50: =IF(H49=0, "0.00%", H47/H49) -> 0 | J50: =IF(J49=0, "0.00%",J47/J49) -> 0
A51: 22 | B51: Total Depreciation Expense (From Page W-6 or S-5) | H51: ='PgW-6_Depr Res-Wtr Plant'!$E$65 -> 1173911.16 | J51: ='PgS-5_Depr Res-Swr Plant'!$E$54 -> 217474.98
A52: 23 | B52: Total Amortization of Contributions | H52: =H50*H51 -> 0 | J52: =J50*J51 -> 0
A53: 24 | B53: Balance at End of Year | H53: =H47+H52 -> 0 | J53: =J47+J52 -> 0
H54: (Total to Pg. 5) | J54: (Total to Pg. 5)
B55: OR
B56: ACTUAL CONTRIBUTIONS IN AID OF CONSTRUCTION
B57: (a) | H57: Water (b) | J57: Sewer (c)
A58: 19 | B58: Total Contributions in Aid at End of Year (see above)
A59: 20 | B59: Total Plant in Service at End of Year (From Page W-5 or S-4)
A60: 21 | B60: Percentage Contributions to Plant
A61: 22 | B61: Total Depreciation Expense (From Page W-6 or S-5)
A62: 23 | B62: Total Amortization of Contributions
A63: 24 | B63: Balance at End of Year
H64: (Total to Pg. 5) | J64: (Total to Pg. 5)
H65: Indicates link to another worksheet within workbook
H66: Indicate formula cells

Sheet Pg10_Debt
C1: INTEREST EXPENSE, NOTES PAYABLE, BONDS, BANK LOANS AND OTHER DEBTS | S1: 2 | U1: 1
S2: Company Name:
C3: INSTRUCTIONS: Please report information for each separate item of debt. Show principal amount to which each interest rate applies. Include all items on which interest was paid during the year. Use additional sheets if necessary.
F5: Origination Date (b) | G5: Frequency of Payments (Semi-Monthly, Monthly, Quarterly, Annually,, etc.) ( c ) | L5: Is Interest Rate Fixed or Variable? (g)
N6: Interest Charged To:
S8: =IF(Cover!$A$1>0,Cover!$A$1," ") -> Algonquin Water Resources of Missouri- dba Resort Utilities
C9: Description of Obligation | H9: Date of | I9: Loan | K9: Interest | N9: Water | P9: Sewer
C10: (Include Name and Address of Each Lender) | H10: Maturity | I10: Amount | K10: Rate | M10: Paid | N10: Utility | P10: Utility
C11: (a) | H11: (d) | I11: (e) | K11: (f) | M11: (h) | N11: (i) | P11: (j)
B14: 3
B16: 4
B18: 5
B20: 6
B22: 7
B24: 8 | U24: For the calendar year of January 1 - December 31,
B26: 9
B28: 10
B30: 11
B32: 12
B34: 13
B36: 14
B38: 15
B40: 16
B42: 17
B44: 18
B46: 19
B48: 20
C49: Total | I49: =SUM(I13:J48) -> 0 | M49: =SUM(M13:M48) -> 0 | N49: =SUM(N13:O48) -> 0 | P49: =SUM(P13:Q48) -> 0
A50: Page 10 | B50: 18 | U50: =IF(Cover!G14>0,Cover!G14," ") -> 
N51: (Total to Pg. W-1) | P51: (Total to Pg. S-1)
C54: 19. If the answer to column (g) is variable, please explain the method used for the interest rate calculation below with corresponding line number from above. | P54: Indicate formula cells

Sheet Pg11_M&S
A1: 1 | B1: For the calendar year of January 1 - December 31, | K1: =IF(Cover!G15>0,Cover!G15," ") -> 2011
A3: 2 | B3: Company Name: | D3: =IF(Cover!$A$1>0,Cover!$A$1," ") -> Algonquin Water Resources of Missouri- dba Resort Utilities
B5: SCHEDULE OF MATERIALS AND SUPPLIES AVAILABLE AT THE END OF THE YEAR
F8: Water | I8: Sewer
B10: Description of Items
B11: (Pipe, Meters, Fittings, Valves, Gas, etc.) | F11: Quantity | G11: Amount | I11: Quantity | J11: Amount
B12: (a) | F12: (b) | G12: (c) | I12: (d) | J12: (e)
A15: 3
A17: 4
A19: 5
A21: 6
A23: 7
A25: 8
A27: 9
A29: 10
A31: 11
A33: 12
A35: 13
A37: 14
A39: 15
A41: 16
A43: 17
A45: 18
A47: 19
A49: 20
A51: 21
A53: 22
A55: 23
A57: 24
B58: Total | F58: =SUM(F14:F57) -> 0 | G58: =SUM(G14:H57) -> 0 | I58: =SUM(I14:I57) -> 0 | J58: =SUM(J14:K57) -> 0
A59: 25
G60: (Total to Pg. 4) | J60: (Total to Pg. 4)
J63: Indicate formula cells

Sheet PgW-1_Op Rev&Exp
A1: 1 | B1: For the calendar year of January 1 - December 31, | K1: =IF(Cover!G15>0,Cover!G15," ") -> 2011
A3: 2 | B3: Company Name: | D3: =IF(Cover!$A$1>0,Cover!$A$1," ") -> Algonquin Water Resources of Missouri- dba Resort Utilities
B5: WATER OPERATING REVENUES, EXPENSES AND STATISTICS
J8: Amount
B9: (a) | J9: (b)
B11: Total Operating Revenues (From Page W-2) | J11: ='PgW-2_Op Rev&Exp'!L59 -> 541074.82
A12: 3
B13: Operating Expenses
J14: ='Pg7_Payroll Info'!I46 -> 0
A15: 4 | B15: Salaries & Wages (From Page 7)
B16: Employee Pensions and Benefits
A17: 5
B18: Purchased Water
A19: 6
B20: Plant Operations Expenses (From Page W-3) | J20: ='PgW-3_Op Rev&Exp'!$J$27 -> 590124.82
A21: 7
B22: Billing Expenses
A23: 8
B24: Supplies and Expenses
A25: 9
B26: Transportation Expenses
A27: 10
B28: Rent Expense *
A29: 11
B30: Insurance Expense
A31: 12
B32: Outside Services Employed (i.e.., Legal, Accounting, etc.) (From Page 8) | J32: ='Pg8_Contract Svcs'!G49 -> 0
A33: 13
B34: Regulatory Commission Expenses
A35: 14
B36: Uncollectible Expenses (From Page 6) | J36: ='Pg6_Sch of Uncollectibles'!$I$68 -> 0
A37: 15
B38: Depreciation Expense (From Page W-6) | J38: ='PgW-6_Depr Res-Wtr Plant'!$E$65 -> 1173911.16
A39: 16
B40: Amortization of Contributions in Aid of Construction (Page 9) | J40: =-Pg9_CIAC!$H$52 -> 0
A41: 17
B42: Amortization Expense
A43: 18
B44: Tax Expenses (From Page W-3) | J44: ='PgW-3_Op Rev&Exp'!$J$45 -> 14984.04
A45: 19
B46: Interest Expense (From Page 10) | J46: =Pg10_Debt!$N$49 -> 0
A47: 20
B48: Other Expenses *
A49: 21
B50: Total Operating Expenses | J50: =SUM(J14:J49) -> 1779020.02
A51: 22
B52: Net Income (Loss) | J52: =J11-J50 -> -1237945.2
A53: 23
B56: * Please attach a detailed explanation for these items.
H58: Indicates link to another worksheet within workbook
H60: Indicate formula cells

Sheet PgW-2_Op Rev&Exp
A1: 1 | B1: For the calendar year of January 1 - December 31, | M1: =IF(Cover!G15>0,Cover!G15," ") -> 2011
A3: 2 | B3: Company Name: | D3: =IF(Cover!$A$1>0,Cover!$A$1," ") -> Algonquin Water Resources of Missouri- dba Resort Utilities
B5: WATER OPERATING REVENUES, EXPENSES AND STATISTICS (Continued)
B6: (Please indicate if metered amounts are in cubic feet measurements.)
F9: No. of
F10: Customers
J11: Gallons
J12: Sold
F13: Beginning | H13: End | J13: 000's | L13: Revenue
F14: of Year | H14: of Year | J14: Omitted | L14: Amount
B15: (a) | F15: (b) | H15: (c) | J15: (d) | L15: (e)
B17: Unmetered Sales of Water | J17: XXXX
A18: 3 | B18: Residential - Single Family
B19: Residential - Apartments | J19: XXXX
A20: 4
B21: Residential - Mobile Homes | J21: XXXX
A22: 5
B23: Commercial | J23: XXXX
A24: 6
B25: Other Sales to Public Authorities | J25: XXXX
A26: 7
B27: Other * | J27: XXXX
A28: 8
B29: Total Unmetered Sales | F29: =SUM(F17:G28) -> 0 | H29: =SUM(H17:I28) -> 0 | J29: =SUM(K18:K28) -> 0 | L29: =SUM(L17:M28) -> 0
A30: 9
B31: Metered Sales of Water | F31: 653 | H31: 1334
A32: 10 | B32: 5/8" Meter
B33: 3/4" Meter | F33: 0
A34: 11
B35: 1" Meter | F35: 21 | H35: 21
A36: 12
B37: 1 1/2" Meter | F37: 0
A38: 13
B39: 2" Meter | F39: 81 | H39: 81
A40: 14
B41: Other * | F41: 12 | H41: 12 | L41: 541074.82
A42: 15
B43: Total Metered Sales | F43: =SUM(F31:G42) -> 767 | H43: =SUM(H31:I42) -> 1448 | J43: =SUM(J31:K42) -> 0 | L43: =SUM(L31:M42) -> 541074.82
A44: 16
B45: Other Operating Revenues
A46: 17 | B46: Late Payment Fees
B47: Inspection Fees
A48: 18
B49: Reconnect Fees
A50: 19
B51: Rent Income
A52: 20
B53: Income from Merchandising, Jobbing & Contract Work *
A54: 21
B55: Other Revenue *
A56: 22
B57: Total Other Operating Revenues | L57: =SUM(L45:M56) -> 0
A58: 23
B59: Total Operating Revenues | L59: =L29+L43+L57 -> 541074.82
A60: 24
L61: (Total to Pg. W-1)
B64: * Please attach a detailed explanation for these items.
L66: Indicate formula cells

Sheet PgW-3_Op Rev&Exp
A1: 1 | B1: For the calendar year of January 1 - December 31, | K1: =IF(Cover!G15>0,Cover!G15," ") -> 2011
A3: 2 | B3: Company Name: | D3: =IF(Cover!$A$1>0,Cover!$A$1," ") -> Algonquin Water Resources of Missouri- dba Resort Utilities
B5: WATER OPERATING REVENUES, EXPENSES AND STATISTICS (Continued)
J8: Amount
B9: (a) | J9: (b)
B11: Plant Operations Expenses
A12: 3 | B12: Repairs of Water Plant - Pump Repair
B13: Repairs of Water Plant - Well Repair
A14: 4
B15: Repairs of Water Plant - Water Line Repair
A16: 5
B17: Repairs of Water Plant - Equipment Repair
A18: 6
B19: Repairs of Water Plant - Other * | J19: 461014.93
A20: 7
B21: Fuel or Power Purchases for Pumping (i.e., Electric Bills, etc.) | J21: 125408.46
A22: 8
B23: Chemicals | J23: 2743.18
A24: 9
B25: Water Testing Expenses | J25: 958.25
A26: 10
B27: Total Plant Operations Expenses | J27: =SUM(J11:K26) -> 590124.82
A28: 11
J29: (Total to Page W-1)
B31: Tax Expenses | J31: 14984.04
A32: 12 | B32: Tax Expense - Property Taxes
B33: Tax Expense - Payroll Taxes
A34: 13
B35: Tax Expense - Franchise Taxes
A36: 14
B37: Tax Expense - Other Taxes *
A38: 15
B39: Tax Expense - Federal Income Taxes
A40: 16
B41: Tax Expense - State Income Taxes
A42: 17
B43: Tax Expense - Investment Tax Credits
A44: 18
B45: Total Tax Expenses | J45: =SUM(J31:K44) -> 14984.04
A46: 19
J47: (Total to Page W-1)
B50: * Please attach a detailed explanation for these items.
J52: Indicate formula cells

Sheet PgW-4_Pump&Purch Wtr
C1: PUMPING AND PURCHASED WATER STATISTICS | P1: 2 | R1: 1
C2: (Omit 000's in reporting number of gallons or cubic feet of water. Use additional sheets if necessary.) | P2: Company Name: | R2: For the calendar year of January 1 - December 31,
E5: Source of Supply
E6: (Please describe source below.)
B7: 3
B8: 4
B9: 5 | M9: Total of all
B10: 6 | M10: Methods | P10: =IF(Cover!$A$1>0,Cover!$A$1," ") -> Algonquin Water Resources of Missouri- dba Resort Utilities
B11: 7 | C11: Gallons Pumped Into System | M11: (a+b+c+d=e)
E13: (a) | G13: (b) | I13: (c) | K13: (d) | M13: (e)
C15: (Please indicate whether measurement is gallons or cubic feet.)
C16: January | E16: 6794000 | M16: =SUM(E16:L17) -> 6794000
B17: 8
C18: February | E18: 7147000 | M18: =SUM(E18:L19) -> 7147000
B19: 9
C20: March | E20: 8318000 | M20: =SUM(E20:L21) -> 8318000
B21: 10
C22: April | E22: 8204000 | M22: =SUM(E22:L23) -> 8204000
B23: 11
C24: May | E24: 8940000 | M24: =SUM(E24:L25) -> 8940000
B25: 12
C26: June | E26: 11824000 | M26: =SUM(E26:L27) -> 11824000
B27: 13
C28: July | E28: 17318000 | M28: =SUM(E28:L29) -> 17318000
B29: 14
C30: August | E30: 18382000 | M30: =SUM(E30:L31) -> 18382000
B31: 15
C32: September | E32: 9725000 | M32: =SUM(E32:L33) -> 9725000
B33: 16
C34: October | E34: 8649000 | M34: =SUM(E34:L35) -> 8649000
B35: 17
C36: November | E36: 8350000 | M36: =SUM(E36:L37) -> 8350000
B37: 18
C38: December | E38: 8390000 | M38: =SUM(E38:L39) -> 8390000
B39: 19
C40: Total for Year | E40: =SUM(E16:F39) -> 122041000 | G40: =SUM(G16:H39) -> 0 | I40: =SUM(I16:J39) -> 0 | K40: =SUM(K16:L39) -> 0 | M40: =SUM(M16:N39) -> 122041000
B41: 20
B44: 21 | C44: Maximum Quantity Supplied to the System in Any One Day: | J44: Minimum:
B46: 22 | C46: Range of Pressure in the Mains as Measured at the Highest Point on System:
C48: If Water is Sold to Other Utilities for Resale, List Names, Addresses, Phone Numbers and Quantities Below:
C49: Name of Reseller | E49: Address | K49: Phone Number | M49: Quantity
B52: 23
B54: 24
A55: Page W-4
B56: 25
R57: =IF(Cover!G15>0,Cover!G15," ") -> 2011
B58: 26
M60: Indicate formula cells

Sheet PgW-5_Wtr Plant
A1: 1 | B1: For the calendar year of January 1 - December 31, | N1: =IF(Cover!G15>0,Cover!G15," ") -> 2011
A3: 2 | B3: Company Name: | D3: =IF(Cover!$A$1>0,Cover!$A$1," ") -> Algonquin Water Resources of Missouri- dba Resort Utilities
B5: WATER UTILITY PLANT IN SERVICE
M7: Balance at
E8: Acct. | G8: Balance at | I8: Additions During | K8: Retirements | M8: End of Year
B9: Account Description | E9: No. | G9: Beginning of Year | I9: the Year | K9: During the Year | M9: (c+d-e)
B10: (a) | E10: (b) | G10: (c) | I10: (d) | K10: (e) | M10: (f)
B11: Intangible Plant | E11: Class B, C or D
A12: 3 | B12: Organization | E12: 301 | I12: 47758 | M12: =SUM(G12)+SUM(I12)-SUM(K12) -> 47758
A13: 4 | B13: Franchise and Consents | E13: 302 | M13: =SUM(G13)+SUM(I13)-SUM(K13) -> 0
A14: 5 | B14: Miscellaneous Intangible Plant | E14: 303 | M14: =SUM(G14)+SUM(I14)-SUM(K14) -> 0
B15: Source of Supply Plant
A16: 6 | B16: Land and Land Rights | E16: 310 | M16: =SUM(G16)+SUM(I16)-SUM(K16) -> 0
A17: 7 | B17: Structures and Improvements | E17: 311 | G17: 427618.49 | I17: 39007.4 | M17: 466625.89
A18: 8 | B18: Collecting and Impounding Reservoirs | E18: 312 | M18: 0
A19: 9 | B19: Lake, River, and Other Intakes | E19: 313 | M19: 0
A20: 10 | B20: Wells and Springs | E20: 314 | G20: 25389.09 | I20: 3452.12 | M20: 28841.21
A21: 11 | B21: Infiltration Galleries and Tunnels | E21: 315 | M21: 0
A22: 12 | B22: Supply Mains | E22: 316 | G22: 5536.89 | I22: 5536.89 | M22: 11073.78
A23: 13 | B23: Other Water Source Plant * | E23: 317 | M23: 0
B24: Pumping Plant
A25: 14 | B25: Land and Land Rights | E25: 320 | M25: =SUM(G25)+SUM(I25)-SUM(K25) -> 0
A26: 15 | B26: Structures and Improvements | E26: 321 | M26: 0
A27: 16 | B27: Boiler Plant Equipment | E27: 322 | M27: 0
A28: 17 | B28: Other Power Production Equipment * | E28: 323 | M28: 0
A29: 18 | B29: Submersible Electric Pumping | E29: 325.1 | G29: 528714.92 | I29: 23056.71 | M29: 551771.63
A30: 19 | B30: High Service or Booster Pumps | E30: 325.2 | M30: 0
A31: 20 | B31: Diesel Pumping Equipment | E31: 326 | M31: 0
A32: 21 | B32: Hydraulic Pumping Equipment | E32: 327 | M32: 0
A33: 22 | B33: Other Pumping Equipment * | E33: 328 | M33: 0
B34: Water Treatment Plant
A35: 23 | B35: Land and Land Rights | E35: 330 | M35: =SUM(G35)+SUM(I35)-SUM(K35) -> 0
A36: 24 | B36: Structures and Improvements | E36: 331 | M36: =SUM(G36)+SUM(I36)-SUM(K36) -> 0
A37: 25 | B37: Water Treatment Equipment | E37: 332 | G37: 843031.23 | I37: 111.18 | M37: =SUM(G37)+SUM(I37)-SUM(K37) -> 843142.41
B38: Transmission and Distribution Plant
A39: 26 | B39: Land and Land Rights | E39: 340 | M39: =SUM(G39)+SUM(I39)-SUM(K39) -> 0
A40: 27 | B40: Structures and Improvements | E40: 341 | M40: 0
A41: 28 | B41: Distribution Reservoirs and Standpipes | E41: 342 | G41: 385472.22 | M41: 385472.22
A42: 29 | B42: Transmission and Distribution Mains | E42: 343 | G42: 2267104.03 | I42: 1919804.56 | M42: 4186908.59
A43: 30 | B43: Fire Mains | E43: 344 | M43: 0
A44: 31 | B44: Services | E44: 345 | G44: 120872.11 | I44: 749.89 | M44: 121622
A45: 32 | B45: Meters | E45: 346 | G45: 211581.43 | I45: 4614.44 | M45: 216195.87
A46: 33 | B46: Meter Installations | E46: 347 | M46: =SUM(G46)+SUM(I46)-SUM(K46) -> 0
A47: 34 | B47: Hydrants | E47: 348 | G47: 67975.41 | I47: 67975.41 | M47: 135950.82
A48: 35 | B48: Other Transmission and Distribution Plant | E48: 349 | M48: 0
B49: General Plant
B50: Note: USOA CLASS B and C are the same | E50: B &C | F50: D
A51: 36 | B51: Land and Land Rights | E51: 389 | F51: 370 | M51: =SUM(G51)+SUM(I51)-SUM(K51) -> 0
A52: 37 | B52: Structures and Improvements | E52: 390 | F52: 371 | M52: 0
A53: 38 | B53: Office Furniture and Equipment | E53: 391 | F53: 372 | G53: 65982.52 | I53: 6034.52 | M53: 72017.04
A54: 39 | B54: Office Computer and Electronic Equipment | E54: 391.1 | F54: 372.1 | M54: =SUM(G54)+SUM(I54)-SUM(K54) -> 0
A55: 40 | B55: Transportation Equipment | E55: 392 | F55: 373 | M55: 0
A56: 41 | B56: Other General Equipment | E56: none | F56: 379 | M56: =SUM(G56)+SUM(I56)-SUM(K56) -> 0
A57: 42 | B57: Stores Equipment | E57: 393 | F57: none | M57: 0
A58: 43 | B58: Tools, Shop and Garage Equipment | E58: 394 | F58: none | G58: 15338.28 | I58: 5051.19 | M58: 20389.47
A59: 44 | B59: Laboratory Equipment | E59: 395 | F59: none | M59: 0
A60: 45 | B60: Power-operated Equipment | E60: 396 | F60: none | M60: 0
A61: 46 | B61: Communication Equipment | E61: 397 | F61: none | G61: 5706.86 | I61: 5706.86 | M61: 11413.72
A62: 47 | B62: Miscellaneous Equipment | E62: 398 | F62: none | G62: 1159.74 | I62: 1159.74 | M62: 2319.48
A63: 48 | B63: Other Tangible Property * | E63: 399 | F63: none | M63: =SUM(G63)+SUM(I63)-SUM(K63) -> 0
A64: 49 | B64: Total Water Utility Plant In Service | G64: =SUM(G11:H63) -> 4971483.22 | I64: =SUM(I11:J63) -> 2130018.91 | K64: =SUM(K11:L63) -> 0 | M64: =SUM(M11:N63) -> 7101502.13
M65: (Total to Pages 4 and 9)
B67: * Please attach a detailed explanation for these items.
B69: NOTE: All entries should be supported by records that identify the property being added or retired, its location, and its original cost in as much detail as reasonably possible. If adjustments are included in Columns "d" and/or "e", use additional sheets.
K71: - | M71: Indicate formula cells

Sheet PgW-6_Depr Res-Wtr Plant
A1: 1 | D1: For the calendar year of January 1 - December 31, | L1: =IF(Cover!G15>0,Cover!G15," ") -> 2011
A2: 2 | D2: Company Name: | E2: =IF(Cover!$A$1>0,Cover!$A$1," ") -> Algonquin Water Resources of Missouri- dba Resort Utilities
B4: DEPRECIATION RESERVE - WATER UTILITY PLANT
B6: Acct. No. (b) | G6: Retirement of Property | K6: Reserve
E7: Annual | F7: Reserve | K7: Balance
D8: Annual | E8: Depreciation | F8: Balance at | G8: Book Cost | K8: at END
D9: Depreciation | E9: Expense | F9: Beginning | G9: of Plant | H9: Cost of | I9: Salvage | J9: Other | K9: of Year
D10: Rate % | E10: (f*g) | F10: of Year | G10: Retired | H10: Removal | I10: Credit | J10: Charges | K10: (h+i-j-k+l+m)
D11: (g)*** | E11: (h) | F11: (i) | G11: (j) | H11: (k) * | I11: (l) * | J11: (m)** | K11: (n)
B12: ='PgW-5_Wtr Plant'!E11 -> Class B, C or D
A13: 3 | B13: ='PgW-5_Wtr Plant'!E12 -> 301 | G13: =SUM('PgW-5_Wtr Plant'!K12:L12) -> 0 | K13: =E13+F13-(G13+H13-I13)+J13 -> 0
A14: 4 | B14: ='PgW-5_Wtr Plant'!E13 -> 302 | G14: =SUM('PgW-5_Wtr Plant'!K13:L13) -> 0 | K14: =E14+F14-(G14+H14-I14)+J14 -> 0
A15: 5 | B15: ='PgW-5_Wtr Plant'!E14 -> 303 | G15: =SUM('PgW-5_Wtr Plant'!K14:L14) -> 0 | K15: =E15+F15-(G15+H15-I15)+J15 -> 0
A17: 6 | B17: ='PgW-5_Wtr Plant'!E16 -> 310 | G17: =SUM('PgW-5_Wtr Plant'!K16:L16) -> 0 | K17: =E17+F17-(G17+H17-I17)+J17 -> 0
A18: 7 | B18: ='PgW-5_Wtr Plant'!E17 -> 311 | D18: 0.025 | F18: 369775.05 | G18: =SUM('PgW-5_Wtr Plant'!K17:L17) -> 0 | K18: 369775.05
A19: 8 | B19: ='PgW-5_Wtr Plant'!E18 -> 312 | G19: =SUM('PgW-5_Wtr Plant'!K18:L18) -> 0 | K19: 0
A20: 9 | B20: ='PgW-5_Wtr Plant'!E19 -> 313 | G20: =SUM('PgW-5_Wtr Plant'!K19:L19) -> 0 | K20: 0
A21: 10 | B21: ='PgW-5_Wtr Plant'!E20 -> 314 | D21: 0.02 | E21: 2971.38 | F21: 2394.56 | G21: =SUM('PgW-5_Wtr Plant'!K20:L20) -> 0 | K21: 5365.94
A22: 11 | B22: ='PgW-5_Wtr Plant'!E21 -> 315 | G22: =SUM('PgW-5_Wtr Plant'!K21:L21) -> 0 | K22: 0
A23: 12 | B23: ='PgW-5_Wtr Plant'!E22 -> 316 | D23: 0.02 | F23: 1090 | G23: =SUM('PgW-5_Wtr Plant'!K22:L22) -> 0 | K23: 1090
A24: 13 | B24: ='PgW-5_Wtr Plant'!E23 -> 317 | G24: =SUM('PgW-5_Wtr Plant'!K23:L23) -> 0 | K24: 0
A26: 14 | B26: ='PgW-5_Wtr Plant'!E25 -> 320 | G26: =SUM('PgW-5_Wtr Plant'!K25:L25) -> 0 | K26: =E26+F26-(G26+H26-I26)+J26 -> 0
A27: 15 | B27: ='PgW-5_Wtr Plant'!E26 -> 321 | G27: =SUM('PgW-5_Wtr Plant'!K26:L26) -> 0 | K27: 0
A28: 16 | B28: ='PgW-5_Wtr Plant'!E27 -> 322 | G28: =SUM('PgW-5_Wtr Plant'!K27:L27) -> 0 | K28: 0
A29: 17 | B29: ='PgW-5_Wtr Plant'!E28 -> 323 | G29: =SUM('PgW-5_Wtr Plant'!K28:L28) -> 0 | K29: 0
A30: 18 | B30: ='PgW-5_Wtr Plant'!E29 -> 325.1 | D30: 0.1 | F30: 246376.14 | G30: =SUM('PgW-5_Wtr Plant'!K29:L29) -> 0 | K30: 246376.14
A31: 19 | B31: ='PgW-5_Wtr Plant'!E30 -> 325.2 | G31: =SUM('PgW-5_Wtr Plant'!K30:L30) -> 0 | K31: 0
A32: 20 | B32: ='PgW-5_Wtr Plant'!E31 -> 326 | G32: =SUM('PgW-5_Wtr Plant'!K31:L31) -> 0 | K32: 0
A33: 21 | B33: ='PgW-5_Wtr Plant'!E32 -> 327 | G33: =SUM('PgW-5_Wtr Plant'!K32:L32) -> 0 | K33: 0
A34: 22 | B34: ='PgW-5_Wtr Plant'!E33 -> 328 | G34: =SUM('PgW-5_Wtr Plant'!K33:L33) -> 0 | K34: 0
A36: 23 | B36: ='PgW-5_Wtr Plant'!E35 -> 330 | G36: =SUM('PgW-5_Wtr Plant'!K35:L35) -> 0 | K36: =E36+F36-(G36+H36-I36)+J36 -> 0
A37: 24 | B37: ='PgW-5_Wtr Plant'!E36 -> 331 | G37: =SUM('PgW-5_Wtr Plant'!K36:L36) -> 0 | K37: =E37+F37-(G37+H37-I37)+J37 -> 0
A38: 25 | B38: ='PgW-5_Wtr Plant'!E37 -> 332 | D38: 0.029 | E38: 185.88 | F38: 336319.81 | G38: =SUM('PgW-5_Wtr Plant'!K37:L37) -> 0 | K38: =E38+F38-(G38+H38-I38)+J38 -> 336505.69
A40: 26 | B40: ='PgW-5_Wtr Plant'!E39 -> 340 | G40: =SUM('PgW-5_Wtr Plant'!K39:L39) -> 0 | K40: =E40+F40-(G40+H40-I40)+J40 -> 0
A41: 27 | B41: ='PgW-5_Wtr Plant'!E40 -> 341 | G41: =SUM('PgW-5_Wtr Plant'!K40:L40) -> 0 | K41: 0
A42: 28 | B42: ='PgW-5_Wtr Plant'!E41 -> 342 | D42: 0.025 | F42: 127574.12 | G42: =SUM('PgW-5_Wtr Plant'!K41:L41) -> 0 | K42: 127574.12
A43: 29 | B43: ='PgW-5_Wtr Plant'!E42 -> 343 | D43: 0.02 | E43: 1164375.43 | F43: 512938.58 | G43: =SUM('PgW-5_Wtr Plant'!K42:L42) -> 0 | K43: 1677314.01
A44: 30 | B44: ='PgW-5_Wtr Plant'!E43 -> 344 | G44: =SUM('PgW-5_Wtr Plant'!K43:L43) -> 0 | K44: 0
A45: 31 | B45: ='PgW-5_Wtr Plant'!E44 -> 345 | D45: 0.025 | E45: 674.24 | F45: 21748.05 | G45: =SUM('PgW-5_Wtr Plant'!K44:L44) -> 0 | K45: 22422.29
A46: 32 | B46: ='PgW-5_Wtr Plant'!E45 -> 346 | E46: 1964.67 | F46: 61211.13 | G46: =SUM('PgW-5_Wtr Plant'!K45:L45) -> 0 | K46: 63175.8
A47: 33 | B47: ='PgW-5_Wtr Plant'!E46 -> 347 | G47: =SUM('PgW-5_Wtr Plant'!K46:L46) -> 0 | K47: 0
A48: 34 | B48: ='PgW-5_Wtr Plant'!E47 -> 348 | D48: 0.02 | E48: 1962.59 | F48: 5399.95 | G48: =SUM('PgW-5_Wtr Plant'!K47:L47) -> 0 | K48: =E48+F48-(G48+H48-I48)+J48 -> 7362.54
A49: 35 | B49: ='PgW-5_Wtr Plant'!E48 -> 349 | G49: =SUM('PgW-5_Wtr Plant'!K48:L48) -> 0 | K49: =E49+F49-(G49+H49-I49)+J49 -> 0
B51: ='PgW-5_Wtr Plant'!E50 -> B &C | C51: ='PgW-5_Wtr Plant'!F50 -> D
A52: 36 | B52: ='PgW-5_Wtr Plant'!E51 -> 389 | C52: ='PgW-5_Wtr Plant'!F51 -> 370 | G52: =SUM('PgW-5_Wtr Plant'!K51:L51) -> 0 | K52: =E52+F52-(G52+H52-I52)+J52 -> 0
A53: 37 | B53: ='PgW-5_Wtr Plant'!E52 -> 390 | C53: ='PgW-5_Wtr Plant'!F52 -> 371 | G53: =SUM('PgW-5_Wtr Plant'!K52:L52) -> 0 | K53: 0
A54: 38 | B54: ='PgW-5_Wtr Plant'!E53 -> 391 | C54: ='PgW-5_Wtr Plant'!F53 -> 372 | D54: 0.05 | E54: 1073.48 | F54: 19990.79 | G54: =SUM('PgW-5_Wtr Plant'!K53:L53) -> 0 | K54: 21064.27
A55: 39 | B55: ='PgW-5_Wtr Plant'!E54 -> 391.1 | C55: ='PgW-5_Wtr Plant'!F54 -> 372.1 | G55: =SUM('PgW-5_Wtr Plant'!K54:L54) -> 0 | K55: 0
A56: 40 | B56: ='PgW-5_Wtr Plant'!E55 -> 392 | C56: ='PgW-5_Wtr Plant'!F55 -> 373 | G56: =SUM('PgW-5_Wtr Plant'!K55:L55) -> 0 | K56: 0
A57: 41 | B57: ='PgW-5_Wtr Plant'!E56 -> none | C57: ='PgW-5_Wtr Plant'!F56 -> 379 | G57: =SUM('PgW-5_Wtr Plant'!K56:L56) -> 0 | K57: 0
A58: 42 | B58: ='PgW-5_Wtr Plant'!E57 -> 393 | C58: ='PgW-5_Wtr Plant'!F57 -> none | G58: =SUM('PgW-5_Wtr Plant'!K57:L57) -> 0 | K58: 0
A59: 43 | B59: ='PgW-5_Wtr Plant'!E58 -> 394 | C59: ='PgW-5_Wtr Plant'!F58 -> none | D59: 0.05 | E59: 703.49 | F59: 2133.32 | G59: =SUM('PgW-5_Wtr Plant'!K58:L58) -> 0 | K59: 2836.81
A60: 44 | B60: ='PgW-5_Wtr Plant'!E59 -> 395 | C60: ='PgW-5_Wtr Plant'!F59 -> none | G60: =SUM('PgW-5_Wtr Plant'!K59:L59) -> 0 | K60: 0
A61: 45 | B61: ='PgW-5_Wtr Plant'!E60 -> 396 | C61: ='PgW-5_Wtr Plant'!F60 -> none | G61: =SUM('PgW-5_Wtr Plant'!K60:L60) -> 0 | K61: =E61+F61-(G61+H61-I61)+J61 -> 0
A62: 46 | B62: ='PgW-5_Wtr Plant'!E61 -> 397 | C62: ='PgW-5_Wtr Plant'!F61 -> none | D62: 0.067 | F62: 3580.65 | G62: =SUM('PgW-5_Wtr Plant'!K61:L61) -> 0 | K62: =E62+F62-(G62+H62-I62)+J62 -> 3580.65
A63: 47 | B63: ='PgW-5_Wtr Plant'!E62 -> 398 | C63: ='PgW-5_Wtr Plant'!F62 -> none | F63: 339.83 | G63: =SUM('PgW-5_Wtr Plant'!K62:L62) -> 0 | K63: =E63+F63-(G63+H63-I63)+J63 -> 339.83
A64: 48 | B64: ='PgW-5_Wtr Plant'!E63 -> 399 | C64: ='PgW-5_Wtr Plant'!F63 -> none | G64: =SUM('PgW-5_Wtr Plant'!K63:L63) -> 0 | K64: 0
A65: 49 | D65: Total | E65: =SUM(E13:E64) -> 1173911.16 | F65: 1710871.98 | G65: 0 | H65: 0 | I65: 0 | J65: 0 | K65: =SUM(K13:L64) -> 2884783.14
E66: (Total to Pg. 9 & Pg. W-1) | K66: (Total to Pg. 4)
B67: NOTE: Amounts included in Column "j" should be the same as in Column "e" on the preceding page. Also, Annual Depreciation Expense is equal to Column "f" from preceding page multiplied by Column "g" found on this page.
A68: * | B68: All entries included in Columns "k" and "l" should be supported by records that identify the property retired and the cost of removal or salvage is as much detail as reasonably possible.
A69: ** | B69: Report the details for these entries. Use additional sheets if necessary.
A70: *** | B70: Annual Depreciation Expense must be calculated separately. This total should be calculated based upon actual in-service and retirement date(s) of new equipment and retirements during the period.
J71: - | K71: Indicate formula cells

Sheet PgW-7_Pumps&Wells
C1: PUMPS | I1: 2 | K1: 1
I2: Company Name: | K2: For the calendar year of January 1 - December 31,
F4: Date of Last | G4: Date of Last
C5: Manufacturer and Type (i.e., High Service, Well, Standby, etc.) | D5: Capacity | E5: Date Installed | F5: Motor Replacement | G5: Pump Replacement
C7: Peerless Well Pump | D7: 350 GPM
B8: 3
C9: Peerless Well Pump | D9: 670 GPM
B10: 4 | I10: =IF(Cover!$A$1>0,Cover!$A$1," ") -> Algonquin Water Resources of Missouri- dba Resort Utilities
C11: Peerless Well Pump | D11: 260 GPM
B12: 5
C13: Peerless Well Pump | D13: 300 GPM
B14: 6
C15: Peerless Well Pump | D15: 365 GPM
B16: 7
C17: 3 - High Service Pumps at TCR 15HP | D17: 350 GPM Each
B18: 8
C19: High Service Pump at TCR 30 HP | D19: 850 GPM
B20: 9
C21: 3 - High Service Pumps at HHR 60HP | D21: ? GPM Each
B22: 10
C23: 3 - High Service Pumps at HHR 100HP | D23: ? GPM Each
B24: 11
C25: 2 - High Service Pumps at OMR 40HP | D25: 490 GPM Each
B26: 12
C28: WELLS
B31: 13 | D31: Number: | E31: Number: | F31: Number: | G31: Number:
C33: Description (i.e., Deep, Artisian, Spring, etc.) | D33: Deep OMR | E33: Deep HHR | F33: Deep HHR | G33: Deep TCR
B34: 14
C35: Year Constructed
B36: 15
C37: Type of Construction
B38: 16
C39: Type of Casing | D39: Steel | E39: Steel | F39: Steel | G39: Steel
B40: 17
C41: Depth and Diameter of Well | D41: 1915' 10" | E41: 1140' 12" | F41: 1023' 8" | G41: 800' 12"
B42: 18
C43: Yield of Well in Gallons per day | D43: 504000 | E43: 964800 | F43: 640800 | G43: 432000
B44: 19
C45: Chemicals (i.e., Provide Type, Cost and Quantities of Each): | D45: Chlorine Gas | E45: Chlorine Gas | F45: Chlorine Gas | G45: Chlorine Gas
B46: 20
C47: Type -
B48: 21
C49: Cost - | D49: .75 Per # | E49: .75 Per # | F49: .75 Per # | G49: .75 Per #
B50: 22
C51: Quantity - | D51: 250 #'s | E51: 175 #s | F51: 275 #'s | G51: 200 #s
B52: 23
A55: Page W-7
K56: =IF(Cover!G15>0,Cover!G15," ") -> 2011

Sheet PgW-8_Meters&Storage
C1: METERS AND METER SETTINGS | K1: 2 | M1: 1
K2: Company Name: | M2: For the calendar year of January 1 - December 31,
I4: Total No. Owned
E5: Total at | F5: Total No. of | G5: Total No. Removed | H5: Total at | I5: by Customers at
C6: Customer Class | D6: Meter Size | E6: Beginning of Year | F6: Additions | G6: or Disconnected | H6: End of Year | I6: End of Year
C7: (a) | D7: (b) | E7: (c) | F7: (d) | G7: (e) | H7: (f) | I7: (g)
C9: Residential:
B10: 3 | K10: =IF(Cover!$A$1>0,Cover!$A$1," ") -> Algonquin Water Resources of Missouri- dba Resort Utilities
B12: 4
B14: 5
B16: 6
C17: Other Customers:
B18: 7
B20: 8
B22: 9
C23: Total in Use by Customers | D23: XXXXXX | E23: =SUM(E9:E22) -> 0 | F23: =SUM(F9:F22) -> 0 | G23: =SUM(G9:G22) -> 0 | H23: =SUM(H9:H22) -> 0 | I23: =SUM(I9:I22) -> 0
B24: 10
C25: Not in Use (i.e., Inventory) | I25: XXXXXX
B26: 11
I27: XXXXXX
B28: 12
I29: XXXXXX
B30: 13
C31: Total Meters | D31: XXXXXX | E31: =SUM(E23:E30) -> 0 | F31: =SUM(F23:F30) -> 0 | G31: =SUM(G23:G30) -> 0 | H31: =SUM(H23:H30) -> 0 | I31: =I23 -> 0
B32: 14
C35: STORAGE FACILITIES
H38: Last Date Painted
G39: Construction | H39: if Applicable
C40: Type of Storage (i.e., Pneumatic, Ground, Standpipes, Elevated Tanks, etc.) | G40: Material | H40: (indicate interior or exterior) | I40: Capacity
C41: (a) | G41: (b) | H41: (c) | I41: (d)
B44: 15
A46: Page W-8 | B46: 16
B48: 17
B50: 18
M51: =IF(Cover!G15>0,Cover!G15," ") -> 2011
B52: 19
I54: Indicate formula cells

Sheet PgW-9_Mains
C1: MAINS (measurement in feet) | J1: 2 | L1: 1
J2: Company Name: | L2: For the calendar year of January 1 - December 31,
G5: Total Removed
C6: Kind of Pipe | D6: Diameter of | E6: Total at | F6: Total Additions | G6: or Abandoned | H6: Total at
C7: (i.e., case iron, galvanized, iron, plastic, etc.) | D7: Pipe | E7: Beginning of Year | F7: During the Year | G7: During the Year | H7: End of Year
C8: (a) | D8: (b) | E8: (c) | F8: (d) | G8: (e) | H8: (f)
C10: PVC | D10: 10" | E10: 2030 | H10: =E10+F10-G10 -> 2030 | J10: =IF(Cover!$A$1>0,Cover!$A$1," ") -> Algonquin Water Resources of Missouri- dba Resort Utilities
C12: PVC | D12: 8" | E12: 19878 | H12: =E12+F12-G12 -> 19878
C14: PVC | D14: 6" | E14: 23974 | H14: =E14+F14-G14 -> 23974
C16: PVC | D16: 4" | E16: 11065 | H16: =E16+F16-G16 -> 11065
C18: PVC | D18: 2" | E18: 17998 | H18: =E18+F18-G18 -> 17998
C20: PVC | D20: 3/4" | E20: 1060 | H20: =E20+F20-G20 -> 1060
C22: Total Mains | E22: =SUM(E10:E21) -> 76005 | F22: =SUM(F10:F21) -> 0 | G22: =SUM(G10:G21) -> 0 | H22: =SUM(H10:H21) -> 76005
C26: SERVICES AVAILABLE FOR USE (from Main to Property Line)
D29: Owned by Utility
H31: Total No. Owned
C32: Size and Description by Type of Material | D32: Total No. at | E32: Total No. | F32: Total No. Retired | G32: Total No. at | H32: by Customers
C33: (i.e., iron, copper, plastic, etc.) | D33: Beginning of Year | E33: of Additions | F33: or Abandoned | G33: End of Year | H33: at End of Year
C34: (a) | D34: (b) | E34: (c) | F34: (d) | G34: (e) | H34: (f)
C36: In Use:
C38: 2" PVC | D38: 351 | G38: =D38+E38-F38 -> 351
G40: =D40+E40-F40 -> 0
G42: =D42+E42-F42 -> 0
G44: =D44+E44-F44 -> 0
C46: For Future Use:
G48: =D48+E48-F48 -> 0
G50: =D50+E50-F50 -> 0
G52: =D52+E52-F52 -> 0
G54: =D54+E54-F54 -> 0
A55: Page W-9
C56: Total of All Services | D56: =SUM(D37:D55) -> 351 | E56: =SUM(E37:E55) -> 0 | F56: =SUM(F37:F55) -> 0 | G56: =SUM(G37:G55) -> 351 | H56: =SUM(H37:H55) -> 0
L57: =IF(Cover!G15>0,Cover!G15," ") -> 2011
H60: Indicate formula cells

Sheet PgS-1_Op Rev&Exp
A1: 1 | B1: For the calendar year of January 1 - December 31, | K1: =IF(Cover!G15>0,Cover!G15," ") -> 2011
A3: 2 | B3: Company Name: | D3: =IF(Cover!$A$1>0,Cover!$A$1," ") -> Algonquin Water Resources of Missouri- dba Resort Utilities
B5: SEWER OPERATING REVENUES, EXPENSES AND STATISTICS
J8: Amount
B9: (a) | J9: (b)
B11: Total Operating Revenues (From Page S-2) | J11: ='PgS-2_Op Rev&Exp'!$L$53 -> 223665.82
A12: 3
B13: Operating Expenses
J14: ='Pg7_Payroll Info'!$K$46 -> 0
A15: 4 | B15: Salaries & Wages (From Page 7)
B16: Employee Pensions and Benefits
A17: 5
B18: Purchased Water
A19: 6
B20: Plant Operations Expenses (From Page S-3) | J20: ='PgS-3_Op Rev&Exp'!J31 -> 321489.76
A21: 7
B22: Billing Expenses
A23: 8
B24: Supplies and Expenses
A25: 9
B26: Transportation Expenses
A27: 10
B28: Rent Expense *
A29: 11
B30: Insurance Expense
A31: 12
B32: Outside Services Employed (i.e., Legal, Accounting, etc.) (From Page 8) | J32: ='Pg8_Contract Svcs'!$K$49 -> 0
A33: 13
B34: Regulatory Commission Expenses
A35: 14
B36: Uncollectible Expenses (From Page 6) | J36: ='Pg6_Sch of Uncollectibles'!$K$68 -> 0
A37: 15
B38: Depreciation Expense (From Page S-5) | J38: ='PgS-5_Depr Res-Swr Plant'!E54 -> 217474.98
A39: 16
B40: Amortization of Contributions in Aid of Construction (Page 9) | J40: =-Pg9_CIAC!$J$52 -> 0
A41: 17
B42: Amortization Expense
A43: 18
B44: Tax Expenses (From Page S-3) | J44: ='PgS-3_Op Rev&Exp'!J49 -> 5115.24
A45: 19
B46: Interest Expense (From Page 10) | J46: =Pg10_Debt!$P$49 -> 0
A47: 20
B48: Other Expenses *
A49: 21
B50: Total Operating Expenses | J50: =SUM(J14:J49) -> 544079.98
A51: 22
B52: Net Income (Loss) | J52: =J11-J50 -> -320414.16
A53: 23
B56: * Please attach a detailed explanation for these items.
H58: Indicates link to another worksheet within workbook
H60: Indicate formula cells

Sheet PgS-2_Op Rev&Exp
A1: 1 | B1: For the calendar year of January 1 - December 31, | M1: =IF(Cover!G15>0,Cover!G15," ") -> 2011
A3: 2 | B3: Company Name: | D3: =IF(Cover!$A$1>0,Cover!$A$1," ") -> Algonquin Water Resources of Missouri- dba Resort Utilities
B5: SEWER OPERATING REVENUES, EXPENSES AND STATISTICS (Continued)
B6: (Please indicate if metered amounts are in cubic feet measurements.)
F9: No. of
F10: Customers
J11: Gallons
J12: Sold
F13: Beginning | H13: End | J13: 000's | L13: Revenue
F14: of Year | H14: of Year | J14: Omitted | L14: Amount
B15: (a) | F15: (b) | H15: (c) | J15: (d) | L15: (e)
B17: Flat Rate Sales | F17: 252 | H17: 434 | J17: XXXX | L17: 190529.43
A18: 3 | B18: Residential - Single Family
B19: Residential - Apartments | J19: XXXX
A20: 4
B21: Residential - Mobile Homes | J21: XXXX
A22: 5
B23: Commercial | F23: 11 | H23: 11 | J23: XXXX | L23: 33136.39
A24: 6
B25: Other Sales to Public Authorities | J25: XXXX
A26: 7
B27: Other * | J27: XXXX
A28: 8
B29: Total Unmetered Sales | F29: =SUM(F17:G28) -> 263 | H29: =SUM(H17:I28) -> 445 | J29: XXXX | L29: =SUM(L17:M28) -> 223665.82
A30: 9
B31: Metered Sales of Water
A32: 10 | B32: Commercial
B33: Other Sales to Public Authorities
A34: 11
B35: Other *
A36: 12
B37: Total Metered Sales | F37: =SUM(F31:G36) -> 0 | H37: =SUM(H31:I36) -> 0 | J37: =SUM(J31:K36) -> 0 | L37: =SUM(L31:M36) -> 0
A38: 13
B39: Other Operating Revenues
A40: 14 | B40: Late Payment Fees
B41: Inspection Fees
A42: 15
B43: Reconnect Fees
A44: 16
B45: Rent Income
A46: 17
B47: Income from Merchandising, Jobbing & Contract Work *
A48: 18
B49: Other Revenue *
A50: 19
B51: Total Other Operating Revenues | L51: =SUM(L39:M50) -> 0
A52: 20
B53: Total Operating Revenues | L53: =L29+L37+L51 -> 223665.82
A54: 21
L55: (Total to Pg. S-1)
B58: * Please attach a detailed explanation for these items.
L60: Indicate formula cells

Sheet PgS-3_Op Rev&Exp
A1: 1 | B1: For the calendar year of January 1 - December 31, | K1: =IF(Cover!G15>0,Cover!G15," ") -> 2011
A3: 2 | B3: Company Name: | D3: =IF(Cover!$A$1>0,Cover!$A$1," ") -> Algonquin Water Resources of Missouri- dba Resort Utilities
B5: SEWER OPERATING REVENUES, EXPENSES AND STATISTICS (Continued)
J8: Amount
B9: (a) | J9: (b)
B11: Plant Operations Expenses
A12: 3 | B12: Contracted Maintenance Expenses
B13: Repairs of Sewer Plant - Pump Repair
A14: 4
B15: Repairs of Sewer Plant - Treatment Repair
A16: 5
B17: Repairs of Sewer Plant - Collecting Sewers and Manhole Repair
A18: 6
B19: Repairs of Sewer Plant - Equipment Repair
A20: 7
B21: Repairs of Sewer Plant - Other * | J21: 284852.14
A22: 8
B23: Utility Bills | J23: 19659
A24: 9
B25: Chemicals | J25: 7069.32
A26: 10
B27: Sludge Hauling Expenses | J27: 8406.3
A28: 11
B29: Effluent Testing Expenses | J29: 1503
A30: 12
B31: Total Plant Operations Expenses | J31: =SUM(J11:K30) -> 321489.76
A32: 13
J33: (Total to Page S-1)
B35: Tax Expenses | J35: 5115.24
A36: 14 | B36: Tax Expense - Property Taxes
B37: Tax Expense - Payroll Taxes
A38: 15
B39: Tax Expense - Franchise Taxes
A40: 16
B41: Tax Expense - Other Taxes *
A42: 17
B43: Tax Expense - Federal Income Taxes
A44: 18
B45: Tax Expense - State Income Taxes
A46: 19
B47: Tax Expense - Investment Tax Credits
A48: 20
B49: Total Tax Expenses | J49: =SUM(J35:K48) -> 5115.24
A50: 21
J51: (Total to Page S-1)
B54: * Please attach a detailed explanation for these items.
J56: Indicate formula cells

Sheet PgS-4_Swr Plant
A1: 1 | B1: For the calendar year of January 1 - December 31, | N1: =IF(Cover!G15>0,Cover!G15," ") -> 2011
A2: =A1+1 -> 2 | B2: Company Name: | D2: =IF(Cover!$A$1>0,Cover!$A$1," ") -> Algonquin Water Resources of Missouri- dba Resort Utilities
B4: SEWER UTILITY PLANT IN SERVICE
E6: Acct. | M6: Balance at
E7: No. | G7: Balance at | I7: Additions During | K7: Retirements | M7: End of Year
B8: Account Description | E8: (b) | G8: Beginning of Year | I8: the Year | K8: During the Year | M8: (c+d-e)
B9: (a) | E9: CLASS | F9: CLASS | G9: (c) | I9: (d) | K9: (e) | M9: (f)
E10: B | F10: C & D
B11: Intangible Plant
A12: =A2+1 -> 3 | B12: Organization | E12: 301 | F12: 301 | G12: 26563.35 | I12: 21194.72 | M12: =SUM(G12)+SUM(I12)-SUM(K12) -> 47758.07
A13: =A12+1 -> 4 | B13: Franchise and Consents | E13: 302 | F13: 302 | M13: =SUM(G13)+SUM(I13)-SUM(K13) -> 0
A14: =A13+1 -> 5 | B14: Miscellaneous Intangible Plant | E14: 303 | F14: 303 | M14: =SUM(G14)+SUM(I14)-SUM(K14) -> 0
B15: Land and Structures
A16: =A14+1 -> 6 | B16: Land and Land Rights | E16: none | F16: 310 | M16: =SUM(G16)+SUM(I16)-SUM(K16) -> 0
A17: =A16+1 -> 7 | B17: Structures and Improvements | E17: none | F17: 311 | M17: =SUM(G17)+SUM(I17)-SUM(K17) -> 0
B18: Collection Plant
A19: =A17+1 -> 8 | B19: Land and Land Rights | E19: 350 | F19: none | M19: =SUM(G19)+SUM(I19)-SUM(K19) -> 0
A20: =A19+1 -> 9 | B20: Structures and Improvements | E20: 351 | F20: none | G20: 382356.67 | I20: 6289.99 | M20: 388646.66
A21: 10 | B21: Collection Sewer - Force | E21: 352.1 | F21: 352.1 | G21: 8303.58 | M21: 8303.58
A22: 11 | B22: Collection Sewer - Gravity | E22: 352.2 | F22: 352.2 | G22: 571128.42 | I22: 30463.63 | M22: 601592.05
A23: 12 | B23: Other Collection Plant Facilities * | E23: 353 | F23: 353 | G23: 9891.72 | M23: 9891.72
A24: 13 | B24: Services to Customers | E24: 354 | F24: 354 | G24: 2909.09 | M24: 2909.09
A25: 14 | B25: Flow Measuring Devices | E25: 355 | F25: 355 | G25: -652.45 | M25: -652.45
B26: Pumping Plant
A27: =A25+1 -> 15 | B27: Land and Land Rights | E27: 360 | F27: none | M27: =SUM(G27)+SUM(I27)-SUM(K27) -> 0
A28: =A27+1 -> 16 | B28: Structures and Improvements | E28: 361 | F28: none | M28: =SUM(G28)+SUM(I28)-SUM(K28) -> 0
A29: =A28+1 -> 17 | B29: Receiving Wells and Pump Pits | E29: 362 | F29: 362 | G29: 90677.1 | M29: =SUM(G29)+SUM(I29)-SUM(K29) -> 90677.1
A30: =A29+1 -> 18 | B30: Pumping Equipment | E30: 363 | F30: 363 | G30: 58127.46 | I30: 531.34 | M30: =SUM(G30)+SUM(I30)-SUM(K30) -> 58658.8
B31: Treatment and Disposal
A32: =A30+1 -> 19 | B32: Land and Land Rights | E32: 370 | F32: none | M32: =SUM(G32)+SUM(I32)-SUM(K32) -> 0
A33: =A32+1 -> 20 | B33: Structures and Improvements | E33: 371 | F33: none | M33: 0
A34: =A33+1 -> 21 | B34: Oxidation Lagoon | E34: none | F34: 372 | G34: 854231.29 | I34: 23899.84 | M34: 878131.13
A35: 22 | B35: Treatment and Disposal Equipment | E35: 372 | F35: 373 | G35: 10340 | M35: 10340
A36: 23 | B36: Sewer Collection (Septic) Tanks | E36: 372.1 | F36: 373.1 | M36: =SUM(G36)+SUM(I36)-SUM(K36) -> 0
A37: 24 | B37: Plant Sewer | E37: 373 | F37: 374 | M37: 0
A38: 25 | B38: Outfall Sewer Lines | E38: 374 | F38: 375 | M38: 0
A39: 26 | B39: Other Treatment and Disposal Plant Equipment * | E39: 375 | F39: 376 | M39: 0
B40: General Plant
A41: =A39+1 -> 27 | B41: Land and Land Rights | E41: 389 | F41: none | M41: =SUM(G41)+SUM(I41)-SUM(K41) -> 0
A42: =A41+1 -> 28 | B42: Structures and Improvements | E42: 390 | F42: none | M42: 0
A43: =A42+1 -> 29 | B43: Office Furniture and Equipment | E43: 391 | F43: 391 | G43: 5920.65 | M43: 5920.65
A44: 30 | B44: Computer and Electronic Office Equipment | E44: 391.1 | F44: 391.1 | M44: 0
A45: 31 | B45: Transportation Equipment | E45: 392 | F45: 392 | M45: 0
A46: 32 | B46: Other General Equipment * | E46: none | F46: 393 | M46: 0
A47: 33 | B47: Stores Equipment | E47: 393 | F47: None | M47: 0
A48: 34 | B48: Tools Shop and Garage Equipment | E48: 394 | F48: None | G48: 3035.66 | I48: 422.92 | M48: 3458.58
A49: 35 | B49: Laboratory Equipment | E49: 395 | F49: None | M49: 0
A50: 36 | B50: Power Operated Equipment | E50: 396 | F50: None | M50: 0
A51: 37 | B51: Communications Equipment | E51: 397 | F51: None | G51: 7843.24 | I51: 101.78 | M51: 7945.02
A52: 38 | M52: =SUM(G52)+SUM(I52)-SUM(K52) -> 0
A53: 39 | B53: Total Sewer Utility Plant In Service | G53: =SUM(G12:H51) -> 2030675.78 | I53: =SUM(I12:J51) -> 82904.22 | K53: =SUM(K12:L51) -> 0 | M53: =SUM(M12:N51) -> 2113580
M54: (Total to Pages 4 and 9)
B55: * Please attach a detailed explanation for these items.
B57: NOTE: All entries should be supported by records that identify the property being added or retired, its location, and its original cost in as much detail as reasonably possible. If adjustments are included in Columns "d" and/or "e", please explain below. Use additional sheets if necessary.
B59: Explanation:
K69: - | M69: Indicate formula cells

Sheet PgS-5_Depr Res-Swr Plant
A1: ='PgS-4_Swr Plant'!A1 -> 1 | D1: For the calendar year of January 1 - December 31, | L1: =IF(Cover!G15>0,Cover!G15," ") -> 2011
A2: ='PgS-4_Swr Plant'!A2 -> 2 | D2: Company Name: | E2: =IF(Cover!$A$1>0,Cover!$A$1," ") -> Algonquin Water Resources of Missouri- dba Resort Utilities
B4: DEPRECIATION RESERVE - SEWER UTILITY PLANT
D6: Annual Depreciation Rate % (g) | E6: Annual Depreciation Expense (f*g) (h)*** | F6: Reserve Balance at Beginning of Year (i) | G6: Retirement of Property | J6: Other Charges (m)** | K6: Reserve Balance at End of Year (h+i-j-k+l+m) (n)
B7: Acct. | G7: Book Cost of Plant Retired (j) | H7: Cost of Removal (k)* | I7: Salvage Credit (l)*
B8: No.
B9: (b) | H9: Cost of | I9: Salvage
B10: CLASS | C10: CLASS | H10: Removal | I10: Credit
B11: B | C11: C & D | H11: (K) * | I11: (L) *
A13: ='PgS-4_Swr Plant'!A12 -> 3 | B13: ='PgS-4_Swr Plant'!E12 -> 301 | C13: ='PgS-4_Swr Plant'!F12 -> 301 | G13: =SUM('PgS-4_Swr Plant'!K12:L12) -> 0 | K13: =E13+F13-(G13+H13-I13)+J13 -> 0
A14: ='PgS-4_Swr Plant'!A13 -> 4 | B14: ='PgS-4_Swr Plant'!E13 -> 302 | C14: ='PgS-4_Swr Plant'!F13 -> 302 | G14: =SUM('PgS-4_Swr Plant'!K13:L13) -> 0 | K14: =E14+F14-(G14+H14-I14)+J14 -> 0
A15: ='PgS-4_Swr Plant'!A14 -> 5 | B15: ='PgS-4_Swr Plant'!E14 -> 303 | C15: ='PgS-4_Swr Plant'!F14 -> 303 | G15: =SUM('PgS-4_Swr Plant'!K14:L14) -> 0 | K15: =E15+F15-(G15+H15-I15)+J15 -> 0
A17: ='PgS-4_Swr Plant'!A16 -> 6 | B17: ='PgS-4_Swr Plant'!E16 -> none | C17: ='PgS-4_Swr Plant'!F16 -> 310 | G17: =SUM('PgS-4_Swr Plant'!K16:L16) -> 0 | K17: =E17+F17-(G17+H17-I17)+J17 -> 0
A18: ='PgS-4_Swr Plant'!A17 -> 7 | B18: ='PgS-4_Swr Plant'!E17 -> none | C18: ='PgS-4_Swr Plant'!F17 -> 311 | G18: =SUM('PgS-4_Swr Plant'!K17:L17) -> 0 | K18: =E18+F18-(G18+H18-I18)+J18 -> 0
A20: ='PgS-4_Swr Plant'!A19 -> 8 | B20: ='PgS-4_Swr Plant'!E19 -> 350 | C20: ='PgS-4_Swr Plant'!F19 -> none | G20: =SUM('PgS-4_Swr Plant'!K19:L19) -> 0 | K20: =E20+F20-(G20+H20-I20)+J20 -> 0
A21: ='PgS-4_Swr Plant'!A20 -> 9 | B21: ='PgS-4_Swr Plant'!E20 -> 351 | C21: ='PgS-4_Swr Plant'!F20 -> none | D21: 0.025 | F21: 59566.66 | G21: =SUM('PgS-4_Swr Plant'!K20:L20) -> 0 | K21: 59566.66
A22: ='PgS-4_Swr Plant'!A21 -> 10 | B22: ='PgS-4_Swr Plant'!E21 -> 352.1 | C22: ='PgS-4_Swr Plant'!F21 -> 352.1 | D22: 0.02 | E22: 166.07 | F22: 675.68 | G22: =SUM('PgS-4_Swr Plant'!K21:L21) -> 0 | K22: 841.75
A23: ='PgS-4_Swr Plant'!A22 -> 11 | B23: ='PgS-4_Swr Plant'!E22 -> 352.2 | C23: ='PgS-4_Swr Plant'!F22 -> 352.2 | D23: 0.02 | E23: 46056.69 | F23: 110808.38 | G23: =SUM('PgS-4_Swr Plant'!K22:L22) -> 0 | K23: 156865.07
A24: ='PgS-4_Swr Plant'!A23 -> 12 | B24: ='PgS-4_Swr Plant'!E23 -> 353 | C24: ='PgS-4_Swr Plant'!F23 -> 353 | D24: 0.02 | F24: 2187.59 | G24: =SUM('PgS-4_Swr Plant'!K23:L23) -> 0 | K24: 2187.59
A25: ='PgS-4_Swr Plant'!A24 -> 13 | B25: ='PgS-4_Swr Plant'!E24 -> 354 | C25: ='PgS-4_Swr Plant'!F24 -> 354 | D25: 0.033 | F25: 424.04 | G25: =SUM('PgS-4_Swr Plant'!K24:L24) -> 0 | K25: 424.04
A26: ='PgS-4_Swr Plant'!A25 -> 14 | B26: ='PgS-4_Swr Plant'!E25 -> 355 | C26: ='PgS-4_Swr Plant'!F25 -> 355 | G26: =SUM('PgS-4_Swr Plant'!K25:L25) -> 0 | K26: 0
A28: ='PgS-4_Swr Plant'!A27 -> 15 | B28: ='PgS-4_Swr Plant'!E27 -> 360 | C28: ='PgS-4_Swr Plant'!F27 -> none | G28: =SUM('PgS-4_Swr Plant'!K27:L27) -> 0 | K28: =E28+F28-(G28+H28-I28)+J28 -> 0
A29: ='PgS-4_Swr Plant'!A28 -> 16 | B29: ='PgS-4_Swr Plant'!E28 -> 361 | C29: ='PgS-4_Swr Plant'!F28 -> none | G29: =SUM('PgS-4_Swr Plant'!K28:L28) -> 0 | K29: =E29+F29-(G29+H29-I29)+J29 -> 0
A30: ='PgS-4_Swr Plant'!A29 -> 17 | B30: ='PgS-4_Swr Plant'!E29 -> 362 | C30: ='PgS-4_Swr Plant'!F29 -> 362 | D30: 0.04 | F30: 39765.8 | G30: =SUM('PgS-4_Swr Plant'!K29:L29) -> 0 | K30: =E30+F30-(G30+H30-I30)+J30 -> 39765.8
A31: ='PgS-4_Swr Plant'!A30 -> 18 | B31: ='PgS-4_Swr Plant'!E30 -> 363 | C31: ='PgS-4_Swr Plant'!F30 -> 363 | D31: 0.1 | E31: 1871.41 | F31: 11945.43 | G31: =SUM('PgS-4_Swr Plant'!K30:L30) -> 0 | K31: =E31+F31-(G31+H31-I31)+J31 -> 13816.84
A33: ='PgS-4_Swr Plant'!A32 -> 19 | B33: ='PgS-4_Swr Plant'!E32 -> 370 | C33: ='PgS-4_Swr Plant'!F32 -> none | G33: =SUM('PgS-4_Swr Plant'!K32:L32) -> 0 | K33: =E33+F33-(G33+H33-I33)+J33 -> 0
A34: ='PgS-4_Swr Plant'!A33 -> 20 | B34: ='PgS-4_Swr Plant'!E33 -> 371 | C34: ='PgS-4_Swr Plant'!F33 -> none | G34: =SUM('PgS-4_Swr Plant'!K33:L33) -> 0 | K34: 0
A35: ='PgS-4_Swr Plant'!A34 -> 21 | B35: ='PgS-4_Swr Plant'!E34 -> none | C35: ='PgS-4_Swr Plant'!F34 -> 372 | D35: 0.05 | E35: 168793.37 | F35: 633193.21 | G35: =SUM('PgS-4_Swr Plant'!K34:L34) -> 0 | K35: 801986.58
A36: ='PgS-4_Swr Plant'!A35 -> 22 | B36: ='PgS-4_Swr Plant'!E35 -> 372 | C36: ='PgS-4_Swr Plant'!F35 -> 373 | D36: 0.025 | E36: 0 | F36: 1832.12 | G36: =SUM('PgS-4_Swr Plant'!K35:L35) -> 0 | K36: 1832.12
A37: ='PgS-4_Swr Plant'!A36 -> 23 | B37: ='PgS-4_Swr Plant'!E36 -> 372.1 | C37: ='PgS-4_Swr Plant'!F36 -> 373.1 | G37: =SUM('PgS-4_Swr Plant'!K36:L36) -> 0 | K37: =E37+F37-(G37+H37-I37)+J37 -> 0
A38: ='PgS-4_Swr Plant'!A37 -> 24 | B38: ='PgS-4_Swr Plant'!E37 -> 373 | C38: ='PgS-4_Swr Plant'!F37 -> 374 | G38: =SUM('PgS-4_Swr Plant'!K37:L37) -> 0 | K38: 0
A39: ='PgS-4_Swr Plant'!A38 -> 25 | B39: ='PgS-4_Swr Plant'!E38 -> 374 | C39: ='PgS-4_Swr Plant'!F38 -> 375 | G39: =SUM('PgS-4_Swr Plant'!K38:L38) -> 0 | K39: 0
A40: ='PgS-4_Swr Plant'!A39 -> 26 | B40: ='PgS-4_Swr Plant'!E39 -> 375 | C40: ='PgS-4_Swr Plant'!F39 -> 376 | G40: =SUM('PgS-4_Swr Plant'!K39:L39) -> 0 | K40: 0
A42: ='PgS-4_Swr Plant'!A41 -> 27 | B42: ='PgS-4_Swr Plant'!E41 -> 389 | C42: ='PgS-4_Swr Plant'!F41 -> none | G42: =SUM('PgS-4_Swr Plant'!K41:L41) -> 0 | K42: =E42+F42-(G42+H42-I42)+J42 -> 0
A43: ='PgS-4_Swr Plant'!A42 -> 28 | B43: ='PgS-4_Swr Plant'!E42 -> 390 | C43: ='PgS-4_Swr Plant'!F42 -> none | G43: =SUM('PgS-4_Swr Plant'!K42:L42) -> 0 | K43: 0
A44: ='PgS-4_Swr Plant'!A43 -> 29 | B44: ='PgS-4_Swr Plant'!E43 -> 391 | C44: ='PgS-4_Swr Plant'!F43 -> 391 | D44: 0.05 | E44: 0 | F44: 3060.75 | G44: =SUM('PgS-4_Swr Plant'!K43:L43) -> 0 | K44: 3060.75
A45: ='PgS-4_Swr Plant'!A44 -> 30 | B45: ='PgS-4_Swr Plant'!E44 -> 391.1 | C45: ='PgS-4_Swr Plant'!F44 -> 391.1 | G45: =SUM('PgS-4_Swr Plant'!K44:L44) -> 0 | K45: 0
A46: ='PgS-4_Swr Plant'!A45 -> 31 | B46: ='PgS-4_Swr Plant'!E45 -> 392 | C46: ='PgS-4_Swr Plant'!F45 -> 392 | G46: =SUM('PgS-4_Swr Plant'!K45:L45) -> 0 | K46: 0
A47: ='PgS-4_Swr Plant'!A46 -> 32 | B47: ='PgS-4_Swr Plant'!E46 -> none | C47: ='PgS-4_Swr Plant'!F46 -> 393 | G47: =SUM('PgS-4_Swr Plant'!K46:L46) -> 0 | K47: 0
A48: ='PgS-4_Swr Plant'!A47 -> 33 | B48: ='PgS-4_Swr Plant'!E47 -> 393 | C48: ='PgS-4_Swr Plant'!F47 -> None | G48: =SUM('PgS-4_Swr Plant'!K47:L47) -> 0 | K48: 0
A49: ='PgS-4_Swr Plant'!A48 -> 34 | B49: ='PgS-4_Swr Plant'!E48 -> 394 | C49: ='PgS-4_Swr Plant'!F48 -> None | D49: 0.05 | E49: 587.44 | F49: 151.78 | G49: =SUM('PgS-4_Swr Plant'!K48:L48) -> 0 | K49: 739.22
A50: ='PgS-4_Swr Plant'!A49 -> 35 | B50: ='PgS-4_Swr Plant'!E49 -> 395 | C50: ='PgS-4_Swr Plant'!F49 -> None | G50: =SUM('PgS-4_Swr Plant'!K49:L49) -> 0 | K50: 0
A51: ='PgS-4_Swr Plant'!A50 -> 36 | B51: ='PgS-4_Swr Plant'!E50 -> 396 | C51: ='PgS-4_Swr Plant'!F50 -> None | G51: =SUM('PgS-4_Swr Plant'!K50:L50) -> 0 | K51: 0
A52: ='PgS-4_Swr Plant'!A51 -> 37 | B52: ='PgS-4_Swr Plant'!E51 -> 397 | C52: ='PgS-4_Swr Plant'!F51 -> None | D52: 0.067 | F52: 111.24 | G52: =SUM('PgS-4_Swr Plant'!K51:L51) -> 0 | K52: 111.24
A53: ='PgS-4_Swr Plant'!A52 -> 38 | B53: =IF('PgS-4_Swr Plant'!E52>0, 'PgS-4_Swr Plant'!E52, "") ->  | C53: =IF('PgS-4_Swr Plant'!F52>0, 'PgS-4_Swr Plant'!F52, "") ->  | G53: =SUM('PgS-4_Swr Plant'!K52:L52) -> 0 | K53: 0
A54: ='PgS-4_Swr Plant'!A53 -> 39 | D54: Total | E54: =SUM(E13:E53) -> 217474.98 | F54: 863722.68 | G54: 0 | H54: 0 | I54: 0 | J54: 0 | K54: =SUM(K13:L53) -> 1081197.66
E55: (Total to Pg. 9 & Pg. S-1) | K55: (Total to Pg. 4)
I56: - | J56: Indicate formula cells

Sheet PgS-6_Gen Info
A1: 1 | B1: For the calendar year of January 1 - December 31, | M1: =IF(Cover!G15>0,Cover!G15," ") -> 2011
A3: 2 | B3: Company Name: | E3: =IF(Cover!$A$1>0,Cover!$A$1," ") -> Algonquin Water Resources of Missouri- dba Resort Utilities
B5: GENERAL INFORMATION
A7: 3 | B7: Treatment Facilities - Please describe process.
B8: OMR (#4 Constructed in Place) - EXTENDED AERATION/CHLORINATION/SLUDGE HOLDING TANK. TCR (Package Unit) - PRIMARY SCREENING/FLOW EQUALIZATION/EXTENDED AERATION/AERATED SLUDGE HOLDING
A16: 4 | B16: Was your treatment plant constructed in place or purchased as a package unit? | I16: Yes | K16: No
A18: 5 | B18: Were your lift stations constructed in place or purchased as package units? | I18: Yes | K18: No
A20: 6 | B20: What is the designated capacity of your treatment facilities? | H20: OMR .09 MGD / TCR .05 MGD
A22: 7 | B22: What percent of designed capacity is currently being utilized? | H22: 17% / 76%
A24: 8 | B24: What is the name of the current operator? | H24: Roger Mullis / Stan Gilliam
A26: 9 | B26: Please describe the treatment process for liquid waste.
B27: OMR (#4 Constructed in Place) - EXTENDED AERATION/CHLORINATION/SLUDGE HOLDING TANK. TCR (Package Unit) - PRIMARY SCREENING/FLOW EQUALIZATION/EXTENDED AERATION/AERATED SLUDGE HOLDING
A35: 10 | B35: Please describe the treatment process for waste solids.
B36: Sludge is retained in the Sludge Holding Tank and then hauled by a contract hauler
A44: 11 | B44: Where is the point of discharge for liquid waste?
A53: 12 | B53: What is the ultimate disposal of waste solids and how obtained?
B54: OMR -LAND APPLICATION AND TCR IS HAULED TO ANOTHER TREATMENT FACILITY BY CONTRACT HAULER
A62: 13 | B62: List any equipment failures occurring during the year. Please state when failure occurred and briefly describe the failure and corrective measures taken.
B71: COLLECTING SEWERS (measurement in feet)
H74: Total No. of | J74: Total No. Removed
B75: Kind of Pipe | F75: Diameter | G75: Total No. at | H75: Additions | J75: or Abandoned | L75: Total No. at
B76: (i.e., Cast Iron, VCP, PVC, etc.) | F76: of Pipe | G76: Beginning of Year | H76: During the Year | J76: During the Year | L76: End of the Year
B77: (a) | F77: (b) | G77: (c) | H77: (d) | J77: (e) | L77: (f)
B79: Force:
A80: 14
B81: PVC | F81: 6",8",10 | G81: 13434
A82: 15
B83: Gravity:
A84: 16
A86: 17
A88: 18
B90: LIFT STATIONS
B93: Pumps: Name, Size, Type | F93: Location | K93: H.P. | L93: GPM | M93: TDH
B95: see next Page
A96: 19
A98: 20
A100: 21

Sheet Sheet1
B1: LIFT STATIONS
B4: Pumps: Name, Size, Type | F4: Location | K4: H.P. | L4: GPM | M4: TDH
B6: Hydromatic 2.0 HP 1 1/4 Submersible | F6: #1 - NW Corner Bldg B - Streamside | K6: 2 | L6: 30
A7: 19 | B7: Hydromatic 2.0 HP 1 1/4 Submersible | F7: #2 - NE Corner Bldg E - Watersbluff | K7: 2 | L7: 30
B8: Hydromatic 5.0 HP 1 1/4 Submersible | F8: #3 - Behind laundry - Campground | K8: 5 | L8: 400
B9: Hydromatic 5.0 HP 1 1/4 Submersible | F9: #4 - Behind Timeshare - Unit #117 | K9: 2 | L9: 30
B10: Hydromatic 5.0 HP 1 1/4 Submersible | F10: #5 - Below Timeshare - Unit #45 | K10: 5 | L10: 400
A11: 20 | B11: Pump#1 Electric - Submersible Year installed 1998 | F11: #1 - S of Entrance @ Member Registration E of Hwy 67 | K11: 5 | L11: 140
B12: Pump#2 Electric - Submersible Year installed 1998 | K12: 5 | L12: 140
B13: Pump#1 Ebara - 230 V 60 Hz 3 phase power (1999) | F13: #2 - W of 1st Timeshare BLdg | K13: 4.7 | L13: 125 | M13: 42'
B14: Pump#2 Ebara - 230 V 60 Hz 3 phase power (1999) | K14: 4.7 | L14: 125
B15: Pump #1 Peabody Barnes Submersible 230V 3phase 2003 | F15: #3 - WWTP, North of Lake | K15: 3
B16: Pump #2 Peabody Barnes Submersible 230V 3phase 2003 | K16: 3
B17: Pump#1 Electric - Submersible | F17: #4 - S end of Lake @ A-Frames
B18: Pump#2 Electric - Submersible
A19: 21

Sheet Verification
C2: Annual Report of | F2: =IF(Cover!A1>0, Cover!A1, " ") -> Algonquin Water Resources of Missouri- dba Resort Utilities
H3: for the calendar year of January 1 - December 31, | P3: =Cover!G15 -> 2011
D6: VERIFICATION
C8: The foregoing report must be verified by the oath of the President, Treasurer, General Manager or Receiver of the company. The oath required may be taken before any person authorized to administer an oath (Notary Public) by the laws of the State in which the same is taken.
D9: OATH
C11: State Of | J11: }
J12: } | K12: ss:
C13: County Of | J13: }
L14: makes oath and says that
E15: Name of Affiant (Company Official/Representative)
C16: s/he is
E17: Official Title of the Affiant (Company Official/Representative)
C18: of
E19: Exact Legal Title or Name of the Respondent (Certificated Company Name)
C20: and is located at | O20: ,
E21: Address and Telephone Number of the Affiant (Company Official/Representative)
C23: that s/he has examined the foregoing report; that to the best of his or her knowledge, information, and belief, all statements of fact contained in the said report are true and the said report is a correct statement of the business and affairs of the above-named respondent.
D24: from | E24: January 1 | G24: , | H24: =Cover!G15 -> 2011 | I24: , to and including | J24: December 31 | M24: , | N24: =Cover!G15 -> 2011
E25: Month/Day | H25: Year | J25: Month/Day | N25: Year
H27: Signature of Affiant (Company Official/Representative)
D29: Subscribed and sworn to before me, a Notary Public, in and for the State and County above named,
D30: this | H30: day of | K30: , | M30: .
D31: My Commission expires | M31: ,
I33: Signature of Notary Public
D34: Missouri Revised Statutes § 392.210 or §393.140
A36: (See Instructions Pages 9 for more information to complete this page. )
